Workbook

Sheet Language

Sheet Casos 1-5 HACER (hidden)
E1: PLANTILLA PARA LOS CASOS 1 a 5
B2: Hipótesis en verde y negrita. Ver notas explicativas dentro de cada celda.
B4: PyG Hipótesis | C4: Hipótesis | F4: 1 | G4: 2 | H4: 3
B5: Número de piezas | C5: 60000 | F5: =C5 -> 60000 | G5: =F5 -> 60000 | H5: =G5 -> 60000
B6: Precio de venta por unidad en euros | C6: 10 | F6: =C6 -> 10 | G6: =F6*(1+$C$8) -> 10 | H6: =G6*(1+$C$8) -> 10
B7: Coste por unidad en euros | C7: 8 | F7: =C7 -> 8 | G7: =F7*(1+$C$8) -> 8 | H7: =G7*(1+$C$8) -> 8
B8: Inflación esperada | C8: 0
B10: PyG (€ ’000) | F10: 1 | G10: 2 | H10: 3
B11: Ventas
B12: Coste de las ventas
B13: Margen Bruto
B14: Gastos generales | C14: 20 | F14: =C14 -> 20 | G14: =F14*(1+$C8) -> 20 | H14: =G14*(1+$C8) -> 20
B15: EBITDA | F15: =F13-F14 -> -20 | G15: =G13-G14 -> -20 | H15: =H13-H14 -> -20
B16: Amortización | C16: 5 | D16: Años
B17: EBIT
B18: Intereses | C18: 0.05
B19: Benef antes de impuestos
B20: Impuestos | C20: 0.2
B21: Beneficio neto | F21: =F19-F20 -> 0 | G21: =G19-G20 -> 0 | H21: =H19-H20 -> 0
B22: Dividendos pagados | C22: 0 | F22: =$C22*F21 -> 0 | G22: =$C22*G21 -> 0 | H22: =$C22*H21 -> 0
I23: Promedio
B24: EBITDA / Inversión inicial | F24: =F15/$E$31 -> -0.06666666667 | G24: =G15/$E$31 -> -0.06666666667 | H24: =H15/$E$31 -> -0.06666666667 | I24: =AVERAGE(F24:H24) -> -0.06666666667
B25: RONA (EBIT / AN) | F25: =F17/E32 ->  | G25: =G17/F32 ->  | H25: =H17/G32 ->  | I25: =AVERAGE(F25:H25) -> 
B26: ROA (Beneficio / AN) | F26: =F21/E32 ->  | G26: =G21/F32 ->  | H26: =H21/G32 ->  | I26: =AVERAGE(F26:H26) -> 
B27: ROE (Benef / Equity) | F27: =F21/E37 -> 0 | G27: =G21/F37 ->  | H27: =H21/G37 ->  | I27: =AVERAGE(F27:H27) -> 
B29: Balance resumido | E29: 0 | F29: 1 | G29: 2 | H29: 3 | K29: Hipótesis de NOF
B30: NOF | C30: 0.2 | D30: x Ventas | H30: 0 | K30: Clientes | L30: 90 | N30: NOF COMO % VENTAS
B31: AF neto | C31: 0 | D31: Capex | E31: 300 | H31: 0 | K31: Existencias | L31: 10 | N31: =(L30+L31*0.85-L32*0.85)/365 -> 0.2
B32: AN activo neto | K32: Proveedores | L32: 30
B34: Línea de crédito D-Corto | C34: 0 | D34: x NOF | H34: 0
B35: Préstamos, D-Largo | C35: 3 | D35: años | E35: 0 | H35: 0
B36: D, Deuda total
B37: E, Equity o Patrimonio | E37: =E31-E35 -> 300
B38: Financiación | E38: =E36+E37 -> 300
D40: Caja en el balance (+ o -)
D41: Aumento anual de caja
D42: ECF = Aumento de caja + dividendos pagados
B44: CF para el accionista o ECF | E44: 0 | F44: 1 | G44: 2 | H44: 3
B45: Beneficio neto
B46: Variación de AN
B47: Variación de Deuda | I47: Suma de CF
B48: CF accionista | I48: =SUM(E48:H48) -> 0
B49: TIR = | C49: =IRR(E48:H48) -> 
B51: FCF | E51: 0 | F51: 1 | G51: 2 | H51: 3
B52: EBIT x (1-t)
B53: Variación de AN
B54: FCF
B55: IRR = | C55: =IRR(E54:H54) -> 
B59: Riesgos. Análisis de sensibilidad | G59: CASO 2
D61: Riesgo Mayor
B62: Escenarios | C62: Base | D62: Peor | E62: Mejor | F62: Rango
B63: Precio | C63: 10 | D63: 9 | E63: 11
B64: TIR accionista | F64: =E64-D64 -> 0
B65: Coste de la máquina AF | C65: 300 | D65: 330 | E65: 270
B66: TIR accionista | F66: =E66-D66 -> 0
B67: Tamaño de NOF | C67: 0.2 | D67: 0.25 | E67: 0.15
B68: TIR accionista | F68: =E68-D68 -> 0
B69: Riesgo Total | F69: =E69-D69 -> 0
B72: TIR y nivel de Deuda | G72: CASO 3
B73: Deuda | C73: TIR | D73: Aumento
B74: 60M€ o 20% del AF
B75: 120M€ o 40% del AF
B76: 180M€ o 60% del AF
B77: 240M€ o 80% del AF
G79: CASO 5
B81: CF para el accionista o ECF | D81: 0 | E81: 1 | F81: 2 | G81: 3 | H81: TIR | I81: Suma de CF
B82: Máquina nueva sin deuda (caso 1)
B83: Máquina nueva con deuda (caso 3)
B84: Máquina antigua CF (caso 5)

Sheet Caso 6 HACER (hidden)
E1: Caso 6. Proyecto de costes. ¿Compra o Renting? HACER
B2: Hipótesis en verde y negrita. Ver notas explicativas dentro de cada celda.
G3: Compra
B4: P&L | C4: Hipótesis | F4: 1 | G4: 2 | H4: 3 | J4: Renting
B5: EBITDA | C5: 100 | F5: =$C5 -> 100 | G5: =$C5 -> 100 | H5: =$C5 -> 100 | J5: =$C5 -> 100
B6: Amortización o pago renting | C6: 5 | D6: años | J6: 85
B7: EBIT | M7: Renting
B8: Intereses | C8: 0.05 | M8: -300
B9: Benef antes de impuestos | M9: 85
B10: Impuestos | C10: 0.2 | M10: =M9 -> 85
B11: Beneficio | M11: =M10 -> 85
M12: =M11 -> 85
B13: Balance con Compra | E13: 0 | F13: 1 | G13: 2 | H13: 3 | M13: =M12 -> 85
B14: NOF | F14: 120 | H14: 0
B15: AF (máquina) | E15: 300 | H15: 0 | M15: =IRR(M8:M13) -> 0.1285846353
B16: AN activo neto | E16: =E14+E15 -> 300 | F16: =F14+F15 -> 120 | G16: =G14+G15 -> 0 | H16: =H15+H14 -> 0
B18: Línea de crédito D-Corto | C18: 0.8 | H18: =$C18*H14 -> 0
B19: Préstamos, D-Largo | C19: 3 | D19: años | E19: 180 | H19: 0
B20: D, Deuda total
B21: E, Equity o Patrimonio
B22: Financiación
D23: Caja en el balance (+ o -)
D24: Caja generada CF
B26: CF accionista. Compra | E26: 0 | F26: 1 | G26: 2 | H26: 3
B27: Variación de AN
B28: Variación de Deuda
B29: Beneficio neto (con compra) | J29: Suma de CF
B30: CF accionista (Compra) | J30: =SUM(E30:H30) -> 0
B32: Rentabilidad requerida (K) = | C32: 0.13 | E32: VAN = | F32: =NPV(C32,F30:H30)+E30 -> 0 | G32: TIR = | H32: =IRR(E30:H30) -> 
B34: CF accionista. Renting | E34: 0 | F34: 1 | G34: 2 | H34: 3
B35: Variación de NOF
B36: Cambios en línea de crédito
B37: Beneficio, con renting | J37: Suma de CF
B38: CF accionista (Renting) | J38: =SUM(E38:H38) -> 0
E40: VAN = | F40: =NPV(C32,F38:H38)+E38 -> 0 | G40: TIR = | H40: =IRR(E38:H38) -> 
E44: Caso 7. Comparar Proyectos. RESUELTO
A46: Caso | B46: CF para el accionista o ECF | D46: 0 | E46: 1 | F46: 2 | G46: 3 | H46: TIR | J46: Suma de CF
A47: 1 | B47: Máquina nueva, sin deuda | D47: -300 | E47: -28 | F47: 92 | G47: 332 | H47: 0.1000188925 | J47: =SUM(D47:G47) -> 96 | Q47: New machine, no debt
A48: 2 | B48: Riesgos. Escenario peor | D48: -330 | E48: -89.8 | F48: 45.2 | G48: 312.2 | H48: -0.05875157854 | J48: -62.4 | Q48: Risks Worst
A49: 2 | B49: Riesgos. Escenario mejor | D49: -270 | E49: 39.8 | F49: 138.8 | G49: 345.8 | H49: 0.3002768656 | J49: 254.4 | Q49: Risks Best
A50: 3 | B50: Maquina nueva con deuda | D50: -120 | E50: 0.8 | F50: 23.36 | G50: 169.76 | H50: 0.1826718657 | J50: 73.92 | Q50: New machine with debt
A51: 3b | B51: Máquina nueva con deuda. Peor escenario | D51: -150 | E51: -49 | F51: -23.92 | G51: 137.48 | H51: -0.1745913865 | J51: -85.44 | Q51: New machine with debt, Worst case
A52: 3c | B52: Maquina nueva con deuda. Mejor escenario | D52: -90 | E52: 51.8 | F52: 70.832 | G52: 201.032 | H52: 0.7522264968 | J52: 233.664 | Q52: New machine with debt, Best case
A53: 4 | B53: Máquina nueva con inflación, sin deuda. | D53: -300 | E53: -28 | F53: 88 | G53: 360.8 | H53: 0.122493435 | J53: 120.8 | Q53: New machine with inflation, no debt
A54: 4b | B54: Nueva máquina con inflación y deuda | D54: -120 | E54: 0.8 | F54: 28.96 | G54: 188.576 | H54: 0.2340795223 | J54: 98.336 | Q54: New machine with inflation and debt
A55: 5 | B55: Maquina vieja, con 0 deuda | D55: 0 | E55: -88 | F55: 32 | G55: 152 | H55: 0.5085926836 | J55: 96 | Q55: Old machine, with 0 debt
A56: 5b | B56: Maquina vieja, con deuda | D56: 0 | E56: 8 | F56: 28.16 | G56: 52.16 | H56: na | J56: 88.32 | Q56: Old machine, with debt
A57: 6 | B57: Renting vs Comprar | D57: 0 | E57: -15.84 | F57: 8.16 | G57: 32.16 | H57: 0.71 | J57: 24.48 | Q57: Renting vs Buy

Sheet Anex 1y2 (hidden)
E1: Casos 1 y 2. Rentabilidad y riesgo de un proyecto. RESUELTO
B2: Hipótesis en verde y negrita. Ver notas explicativas dentro de cada celda.
B4: PyG Hipótesis | C4: Hipótesis | F4: 1 | G4: 2 | H4: 3
B5: Número de piezas | C5: 60000 | F5: =C5 -> 60000 | G5: =F5 -> 60000 | H5: =G5 -> 60000
B6: Precio de venta por unidad en euros | C6: 10 | F6: =C6 -> 10 | G6: =F6*(1+$C$8) -> 10 | H6: =G6*(1+$C$8) -> 10
B7: Coste por unidad en euros | C7: 8 | F7: =C7 -> 8 | G7: =F7*(1+$C$8) -> 8 | H7: =G7*(1+$C$8) -> 8
B8: Inflación esperada | C8: 0
B10: PyG (€ ’000) | F10: 1 | G10: 2 | H10: 3
B11: Ventas | F11: =F5*F6/1000 -> 600 | G11: =G5*G6/1000 -> 600 | H11: =H5*H6/1000 -> 600
B12: Coste de las ventas | F12: =F7*F5/1000 -> 480 | G12: =G7*G5/1000 -> 480 | H12: =H7*H5/1000 -> 480
B13: Margen Bruto | F13: =F11-F12 -> 120 | G13: =G11-G12 -> 120 | H13: =H11-H12 -> 120
B14: Gastos generales | C14: 20 | F14: =C14 -> 20 | G14: =F14*(1+$C8) -> 20 | H14: =G14*(1+$C8) -> 20
B15: EBITDA | F15: =F13-F14 -> 100 | G15: =G13-G14 -> 100 | H15: =H13-H14 -> 100
B16: Amortización | C16: 5 | D16: Años | F16: =$E31*(1/$C$16) -> 60 | G16: =$E31*(1/$C$16) -> 60 | H16: =$E31*(1/$C$16) -> 60
B17: EBIT | F17: =F15-F16 -> 40 | G17: =G15-G16 -> 40 | H17: =H15-H16 -> 40
B18: Intereses | C18: 0.05 | F18: =E36*$C$18 -> 0 | G18: =F36*$C$18 -> 0 | H18: =G36*$C$18 -> 0
B19: Benef antes de impuestos | F19: =F17-F18 -> 40 | G19: =G17-G18 -> 40 | H19: =H17-H18 -> 40
B20: Impuestos | C20: 0.2 | F20: =F19*$C$20 -> 8 | G20: =G19*$C$20 -> 8 | H20: =H19*$C$20 -> 8
B21: Beneficio neto | F21: =F19-F20 -> 32 | G21: =G19-G20 -> 32 | H21: =H19-H20 -> 32
B22: Dividendos pagados | C22: 0 | F22: =$C22*F21 -> 0 | G22: =$C22*G21 -> 0 | H22: =$C22*H21 -> 0
I23: Promedio
B24: EBITDA / Inversión inicial | F24: =F15/$E$31 -> 0.3333333333 | G24: =G15/$E$31 -> 0.3333333333 | H24: =H15/$E$31 -> 0.3333333333 | I24: =AVERAGE(F24:H24) -> 0.3333333333
B25: RONA (EBIT / AN) | F25: =F17/E32 -> 0.1333333333 | G25: =G17/F32 -> 0.1111111111 | H25: =H17/G32 -> 0.1333333333 | I25: =AVERAGE(F25:H25) -> 0.1259259259
B26: ROA (Beneficio / AN) | F26: =F21/E32 -> 0.1066666667 | G26: =G21/F32 -> 0.08888888889 | H26: =H21/G32 -> 0.1066666667 | I26: =AVERAGE(F26:H26) -> 0.1007407407
B27: ROE (Benef / Equity) | F27: =F21/E37 -> 0.1066666667 | G27: =G21/F37 -> 0.09638554217 | H27: =H21/G37 -> 0.08791208791 | I27: =AVERAGE(F27:H27) -> 0.09698809892
B29: Balance resumido | E29: 0 | F29: 1 | G29: 2 | H29: 3 | K29: Hipótesis de NOF
B30: NOF | C30: 0.2 | D30: x Ventas | F30: =$C$30*F11 -> 120 | G30: =$C$30*G11 -> 120 | H30: 0 | K30: Clientes | L30: 90 | N30: NOF COMO % VENTAS
B31: AF neto | C31: 0 | D31: Capex | E31: 300 | F31: =E31-F16+$C31 -> 240 | G31: =F31-G16+$C31 -> 180 | H31: 0 | K31: Existencias | L31: 10 | N31: =(L30+L31*0.85-L32*0.85)/365 -> 0.2
B32: AN activo neto | E32: =E31+E30 -> 300 | F32: =F31+F30 -> 360 | G32: =G31+G30 -> 300 | H32: =H31+H30 -> 0 | K32: Proveedores | L32: 30
B34: Línea de crédito D-Corto | C34: 0 | D34: x NOF | E34: =$C34*E30 -> 0 | F34: =$C34*F30 -> 0 | G34: =$C34*G30 -> 0 | H34: =$C34*H30 -> 0
B35: Préstamos, D-Largo | C35: 3 | D35: años | E35: 0 | F35: =E35-($E35/$C35) -> 0 | G35: =F35-($E35/$C35) -> 0 | H35: 0
B36: D, Deuda total | E36: =E34+E35 -> 0 | F36: =F34+F35 -> 0 | G36: =G34+G35 -> 0 | H36: =H34+H35 -> 0
B37: E, Equity o Patrimonio | E37: =E31-E35 -> 300 | F37: =E37+F21-F22 -> 332 | G37: =F37+G21-G22 -> 364 | H37: =G37+H21-H22 -> 396
B38: Financiación | E38: =E36+E37 -> 300 | F38: =F36+F37 -> 332 | G38: =G36+G37 -> 364 | H38: =H36+H37 -> 396
D40: Caja en el balance (+ o -) | E40: =E38-E32 -> 0 | F40: =F38-F32 -> -28 | G40: =G38-G32 -> 64 | H40: =H38-H32 -> 396
D41: Aumento anual de caja | F41: =F40-E40 -> -28 | G41: =G40-F40 -> 92 | H41: =H40-G40 -> 332
D42: ECF = Aumento de caja + dividendos pagados | E42: =-E37 -> -300 | F42: =F41+F22 -> -28 | G42: =G41+G22 -> 92 | H42: =H41+H22 -> 332
B44: CF para el accionista o ECF | E44: 0 | F44: 1 | G44: 2 | H44: 3
B45: Beneficio neto | F45: =F21 -> 32 | G45: =G21 -> 32 | H45: =H21 -> 32
B46: Variación de AN | E46: =-E32 -> -300 | F46: =E32-F32 -> -60 | G46: =F32-G32 -> 60 | H46: =G32-H32 -> 300
B47: Variación de Deuda | E47: =E36 -> 0 | F47: =F36-E36 -> 0 | G47: =G36-F36 -> 0 | H47: =H36-G36 -> 0 | I47: Suma de CF
B48: CF accionista | E48: =SUM(E45:E47) -> -300 | F48: =SUM(F45:F47) -> -28 | G48: =SUM(G45:G47) -> 92 | H48: =SUM(H45:H47) -> 332 | I48: =SUM(E48:H48) -> 96
B49: TIR = | C49: =IRR(E48:H48) -> 0.1000188925
B51: FCF | E51: 0 | F51: 1 | G51: 2 | H51: 3
B52: EBIT x (1-t) | F52: =F17*(1-$C20) -> 32 | G52: =G17*(1-$C20) -> 32 | H52: =H17*(1-$C20) -> 32
B53: Variación de AN | E53: =E46 -> -300 | F53: =F46 -> -60 | G53: =G46 -> 60 | H53: =H46 -> 300
B54: FCF | E54: =SUM(E52:E53) -> -300 | F54: =SUM(F52:F53) -> -28 | G54: =SUM(G52:G53) -> 92 | H54: =SUM(H52:H53) -> 332
B55: IRR = | C55: =IRR(E54:H54) -> 0.1000188925
B59: Riesgos. Análisis de sensibilidad | G59: CASO 2
D61: Riesgo Mayor
B62: Escenarios | C62: Base | D62: Peor | E62: Mejor | F62: Rango
B63: Precio | C63: 10 | D63: 9 | E63: 11
B64: TIR accionista | C64: 0.1 | D64: -0.05131943497 | E64: 0.2448103983 | F64: =E64-D64 -> 0.2961298333
B65: Coste de la máquina AF | C65: 300 | D65: 330 | E65: 270
B66: TIR accionista | C66: =C64 -> 0.1 | D66: 0.07900881485 | E66: 0.124559999 | F66: =E66-D66 -> 0.0455511841
B67: Tamaño de NOF | C67: 0.2 | D67: 0.25 | E67: 0.15
B68: TIR accionista | C68: =C64 -> 0.1 | D68: 0.09438647416 | E68: 0.1063271923 | F68: =E68-D68 -> 0.01194071812
B69: Riesgo Total | C69: 0.1 | D69: -0.05875157854 | E69: 0.3002768656 | F69: =E69-D69 -> 0.3590284441
B72: TIR y nivel de Deuda | G72: CASO 3
B73: Deuda | C73: TIR | D73: Aumento
B74: 60M€ o 20% del AF | C74: 0.128
B75: 120M€ o 40% del AF | C75: 0.149 | D75: =C75-C74 -> 0.021
B76: 180M€ o 60% del AF | C76: 0.183 | D76: =C76-C75 -> 0.034
B77: 240M€ o 80% del AF | C77: 0.251 | D77: =C77-C76 -> 0.068
G79: CASO 5
B81: CF para el accionista o ECF | D81: 0 | E81: 1 | F81: 2 | G81: 3 | H81: TIR | I81: Suma de CF
B82: Máquina nueva sin deuda (caso 1) | D82: -300 | E82: -28 | F82: 92 | G82: 332 | H82: =IRR(D82:G82) -> 0.1000188925 | I82: =SUM(D82:G82) -> 96
B83: Máquina nueva con deuda (caso 3) | D83: -120 | E83: 0.8 | F83: 23.36 | G83: 169.76 | H83: =IRR(D83:G83) -> 0.1826718657 | I83: =SUM(D83:G83) -> 73.92
B84: Máquina antigua CF (caso 5) | D84: 0 | E84: -88 | F84: 32 | G84: 152 | H84: =IRR(D84:G84) -> 0.5085926836 | I84: =SUM(D84:G84) -> 96

Sheet Anex 3 (hidden)
E1: Caso 3. Proyecto con deuda. RESUELTO
B2: Hipótesis en verde y negrita. Ver notas explicativas dentro de cada celda.
B4: PyG Hipótesis | C4: Hipótesis | F4: 1 | G4: 2 | H4: 3
B5: Número de piezas | C5: 60000 | F5: =C5 -> 60000 | G5: =F5 -> 60000 | H5: =G5 -> 60000
B6: Precio de venta por unidad en euros | C6: 10 | F6: =C6 -> 10 | G6: =F6*(1+$C$8) -> 10 | H6: =G6*(1+$C$8) -> 10
B7: Coste por unidad en euros | C7: 8 | F7: =C7 -> 8 | G7: =F7*(1+$C$8) -> 8 | H7: =G7*(1+$C$8) -> 8
B8: Inflación esperada | C8: 0
B10: PyG (€ ’000) | F10: 1 | G10: 2 | H10: 3
B11: Ventas | F11: =F5*F6/1000 -> 600 | G11: =G5*G6/1000 -> 600 | H11: =H5*H6/1000 -> 600
B12: Coste de las ventas | F12: =F7*F5/1000 -> 480 | G12: =G7*G5/1000 -> 480 | H12: =H7*H5/1000 -> 480
B13: Margen Bruto | F13: =F11-F12 -> 120 | G13: =G11-G12 -> 120 | H13: =H11-H12 -> 120
B14: Gastos generales | C14: 20 | F14: =C14 -> 20 | G14: =F14*(1+$C8) -> 20 | H14: =G14*(1+$C8) -> 20
B15: EBITDA | F15: =F13-F14 -> 100 | G15: =G13-G14 -> 100 | H15: =H13-H14 -> 100
B16: Amortización | C16: 5 | D16: Años | F16: =$E31*(1/$C$16) -> 60 | G16: =$E31*(1/$C$16) -> 60 | H16: =$E31*(1/$C$16) -> 60
B17: EBIT | F17: =F15-F16 -> 40 | G17: =G15-G16 -> 40 | H17: =H15-H16 -> 40
B18: Intereses | C18: 0.05 | F18: =E36*$C$18 -> 9 | G18: =F36*$C$18 -> 10.8 | H18: =G36*$C$18 -> 7.8
B19: Benef antes de impuestos | F19: =F17-F18 -> 31 | G19: =G17-G18 -> 29.2 | H19: =H17-H18 -> 32.2
B20: Impuestos | C20: 0.2 | F20: =F19*$C$20 -> 6.2 | G20: =G19*$C$20 -> 5.84 | H20: =H19*$C$20 -> 6.44
B21: Beneficio neto | F21: =F19-F20 -> 24.8 | G21: =G19-G20 -> 23.36 | H21: =H19-H20 -> 25.76
B22: Dividendos pagados | C22: 0 | F22: =$C22*F21 -> 0 | G22: =$C22*G21 -> 0 | H22: =$C22*H21 -> 0
I23: Promedio
B24: EBITDA / Inversión inicial | F24: =F15/$E$31 -> 0.3333333333 | G24: =G15/$E$31 -> 0.3333333333 | H24: =H15/$E$31 -> 0.3333333333 | I24: =AVERAGE(F24:H24) -> 0.3333333333
B25: RONA (EBIT / AN) | F25: =F17/E32 -> 0.1333333333 | G25: =G17/F32 -> 0.1111111111 | H25: =H17/G32 -> 0.1333333333 | I25: =AVERAGE(F25:H25) -> 0.1259259259
B26: ROA (Beneficio / AN) | F26: =F21/E32 -> 0.08266666667 | G26: =G21/F32 -> 0.06488888889 | H26: =H21/G32 -> 0.08586666667 | I26: =AVERAGE(F26:H26) -> 0.07780740741
B27: ROE (Benef / Equity) | F27: =F21/E37 -> 0.2066666667 | G27: =G21/F37 -> 0.1613259669 | H27: =H21/G37 -> 0.1531874405 | I27: =AVERAGE(F27:H27) -> 0.1737266914
B29: Balance resumido | E29: 0 | F29: 1 | G29: 2 | H29: 3 | K29: Hipótesis de NOF
B30: NOF | C30: 0.2 | D30: x Ventas | F30: =$C$30*F11 -> 120 | G30: =$C$30*G11 -> 120 | H30: 0 | K30: Clientes | L30: 90 | N30: NOF COMO % VENTAS
B31: AF neto | C31: 0 | D31: Capex | E31: 300 | F31: =E31-F16+$C31 -> 240 | G31: =F31-G16+$C31 -> 180 | H31: 0 | K31: Existencias | L31: 10 | N31: =(L30+L31*0.85-L32*0.85)/365 -> 0.2
B32: AN activo neto | E32: =E31+E30 -> 300 | F32: =F31+F30 -> 360 | G32: =G31+G30 -> 300 | H32: =H31+H30 -> 0 | K32: Proveedores | L32: 30
B34: Línea de crédito D-Corto | C34: 0.8 | D34: x NOF | E34: =$C34*E30 -> 0 | F34: =$C34*F30 -> 96 | G34: =$C34*G30 -> 96 | H34: =$C34*H30 -> 0
B35: Préstamos, D-Largo | C35: 3 | D35: años | E35: 180 | F35: =E35-($E35/$C35) -> 120 | G35: =F35-($E35/$C35) -> 60 | H35: 0
B36: D, Deuda total | E36: =E34+E35 -> 180 | F36: =F34+F35 -> 216 | G36: =G34+G35 -> 156 | H36: =H34+H35 -> 0
B37: E, Equity o Patrimonio | E37: =E31-E35 -> 120 | F37: =E37+F21-F22 -> 144.8 | G37: =F37+G21-G22 -> 168.16 | H37: =G37+H21-H22 -> 193.92
B38: Financiación | E38: =E36+E37 -> 300 | F38: =F36+F37 -> 360.8 | G38: =G36+G37 -> 324.16 | H38: =H36+H37 -> 193.92
D40: Caja en el balance (+ o -) | E40: =E38-E32 -> 0 | F40: =F38-F32 -> 0.8 | G40: =G38-G32 -> 24.16 | H40: =H38-H32 -> 193.92
D41: Aumento anual de caja | F41: =F40-E40 -> 0.8 | G41: =G40-F40 -> 23.36 | H41: =H40-G40 -> 169.76
D42: ECF = Aumento de caja + dividendos pagados | E42: =-E37 -> -120 | F42: =F41+F22 -> 0.8 | G42: =G41+G22 -> 23.36 | H42: =H41+H22 -> 169.76
B44: CF para el accionista o ECF | E44: 0 | F44: 1 | G44: 2 | H44: 3
B45: Beneficio neto | F45: =F21 -> 24.8 | G45: =G21 -> 23.36 | H45: =H21 -> 25.76
B46: Variación de AN | E46: =-E32 -> -300 | F46: =E32-F32 -> -60 | G46: =F32-G32 -> 60 | H46: =G32-H32 -> 300
B47: Variación de Deuda | E47: =E36 -> 180 | F47: =F36-E36 -> 36 | G47: =G36-F36 -> -60 | H47: =H36-G36 -> -156 | I47: Suma de CF
B48: CF accionista | E48: =SUM(E45:E47) -> -120 | F48: =SUM(F45:F47) -> 0.8 | G48: =SUM(G45:G47) -> 23.36 | H48: =SUM(H45:H47) -> 169.76 | I48: =SUM(E48:H48) -> 73.92
B49: TIR = | C49: =IRR(E48:H48) -> 0.1826718657
B51: FCF | E51: 0 | F51: 1 | G51: 2 | H51: 3
B52: EBIT x (1-t) | F52: =F17*(1-$C20) -> 32 | G52: =G17*(1-$C20) -> 32 | H52: =H17*(1-$C20) -> 32
B53: Variación de AN | E53: =E46 -> -300 | F53: =F46 -> -60 | G53: =G46 -> 60 | H53: =H46 -> 300
B54: FCF | E54: =SUM(E52:E53) -> -300 | F54: =SUM(F52:F53) -> -28 | G54: =SUM(G52:G53) -> 92 | H54: =SUM(H52:H53) -> 332
B55: IRR = | C55: =IRR(E54:H54) -> 0.1000188925
B59: Riesgos. Análisis de sensibilidad | G59: CASO 2
C61: Riesgo Mayor
B62: Escenarios | C62: Base | D62: Peor | E62: Mejor | F62: Rango
B63: Precio | C63: 10 | D63: 9 | E63: 11
B64: TIR accionista | C64: 0.1 | D64: -0.05131943497 | E64: 0.2448103983 | F64: =E64-D64 -> 0.2961298333
B65: Coste de la máquina AF | C65: 300 | D65: 330 | E65: 270
B66: TIR accionista | C66: =C64 -> 0.1 | D66: 0.07900881485 | E66: 0.124559999 | F66: =E66-D66 -> 0.0455511841
B67: Tamaño de NOF | C67: 0.2 | D67: 0.25 | E67: 0.15
B68: TIR accionista | C68: =C64 -> 0.1 | D68: 0.09438647416 | E68: 0.1063271923 | F68: =E68-D68 -> 0.01194071812
B69: Riesgo Total | C69: 0.1 | D69: -0.05875157854 | E69: 0.3002768656 | F69: =E69-D69 -> 0.3590284441
B72: TIR y nivel de Deuda | G72: CASO 3
B73: Deuda | C73: TIR | D73: Aumento
B74: 60M€ o 20% del AF | C74: 0.128
B75: 120M€ o 40% del AF | C75: 0.149 | D75: =C75-C74 -> 0.021
B76: 180M€ o 60% del AF | C76: 0.183 | D76: =C76-C75 -> 0.034
B77: 240M€ o 80% del AF | C77: 0.251 | D77: =C77-C76 -> 0.068
G79: CASO 5
B81: CF para el accionista o ECF | D81: 0 | E81: 1 | F81: 2 | G81: 3 | H81: TIR | I81: Suma de CF
B82: Máquina nueva sin deuda (caso 1) | D82: -300 | E82: -28 | F82: 92 | G82: 332 | H82: =IRR(D82:G82) -> 0.1000188925 | I82: =SUM(D82:G82) -> 96
B83: Máquina nueva con deuda (caso 3) | D83: -120 | E83: 0.8 | F83: 23.36 | G83: 169.76 | H83: =IRR(D83:G83) -> 0.1826718657 | I83: =SUM(D83:G83) -> 73.92
B84: Máquina antigua CF (caso 5) | D84: 0 | E84: -88 | F84: 32 | G84: 152 | H84: =IRR(D84:G84) -> 0.5085926836 | I84: =SUM(D84:G84) -> 96

Sheet Anex 4 (hidden)
E1: Caso 4. Proyecto con inflación. RESUELTO
B2: Hipótesis en verde y negrita. Ver notas explicativas dentro de cada celda.
B4: PyG Hipótesis | C4: Hipótesis | F4: 1 | G4: 2 | H4: 3
B5: Número de piezas | C5: 60000 | F5: =C5 -> 60000 | G5: =F5 -> 60000 | H5: =G5 -> 60000
B6: Precio de venta por unidad en euros | C6: 10 | F6: =C6 -> 10 | G6: =F6*(1+$C$8) -> 11 | H6: =G6*(1+$C$8) -> 12.1
B7: Coste por unidad en euros | C7: 8 | F7: =C7 -> 8 | G7: =F7*(1+$C$8) -> 8.8 | H7: =G7*(1+$C$8) -> 9.68
B8: Inflación esperada | C8: 0.1
B10: PyG (€ ’000) | F10: 1 | G10: 2 | H10: 3
B11: Ventas | F11: =F5*F6/1000 -> 600 | G11: =G5*G6/1000 -> 660 | H11: =H5*H6/1000 -> 726
B12: Coste de las ventas | F12: =F7*F5/1000 -> 480 | G12: =G7*G5/1000 -> 528 | H12: =H7*H5/1000 -> 580.8
B13: Margen Bruto | F13: =F11-F12 -> 120 | G13: =G11-G12 -> 132 | H13: =H11-H12 -> 145.2
B14: Gastos generales | C14: 20 | F14: =C14 -> 20 | G14: =F14*(1+$C8) -> 22 | H14: =G14*(1+$C8) -> 24.2
B15: EBITDA | F15: =F13-F14 -> 100 | G15: =G13-G14 -> 110 | H15: =H13-H14 -> 121
B16: Amortización | C16: 5 | D16: Años | F16: =$E31*(1/$C$16) -> 60 | G16: =$E31*(1/$C$16) -> 60 | H16: =$E31*(1/$C$16) -> 60
B17: EBIT | F17: =F15-F16 -> 40 | G17: =G15-G16 -> 50 | H17: =H15-H16 -> 61
B18: Intereses | C18: 0.05 | F18: =E36*$C$18 -> 0 | G18: =F36*$C$18 -> 0 | H18: =G36*$C$18 -> 0
B19: Benef antes de impuestos | F19: =F17-F18 -> 40 | G19: =G17-G18 -> 50 | H19: =H17-H18 -> 61
B20: Impuestos | C20: 0.2 | F20: =F19*$C$20 -> 8 | G20: =G19*$C$20 -> 10 | H20: =H19*$C$20 -> 12.2
B21: Beneficio neto | F21: =F19-F20 -> 32 | G21: =G19-G20 -> 40 | H21: =H19-H20 -> 48.8
B22: Dividendos pagados | C22: 0 | F22: =$C22*F21 -> 0 | G22: =$C22*G21 -> 0 | H22: =$C22*H21 -> 0
I23: Promedio
B24: EBITDA / Inversión inicial | F24: =F15/$E$31 -> 0.3333333333 | G24: =G15/$E$31 -> 0.3666666667 | H24: =H15/$E$31 -> 0.4033333333 | I24: =AVERAGE(F24:H24) -> 0.3677777778
B25: RONA (EBIT / AN) | F25: =F17/E32 -> 0.1333333333 | G25: =G17/F32 -> 0.1388888889 | H25: =H17/G32 -> 0.1955128205 | I25: =AVERAGE(F25:H25) -> 0.1559116809
B26: ROA (Beneficio / AN) | F26: =F21/E32 -> 0.1066666667 | G26: =G21/F32 -> 0.1111111111 | H26: =H21/G32 -> 0.1564102564 | I26: =AVERAGE(F26:H26) -> 0.1247293447
B27: ROE (Benef / Equity) | F27: =F21/E37 -> 0.1066666667 | G27: =G21/F37 -> 0.1204819277 | H27: =H21/G37 -> 0.1311827957 | I27: =AVERAGE(F27:H27) -> 0.1194437967
B29: Balance resumido | E29: 0 | F29: 1 | G29: 2 | H29: 3 | K29: Hipótesis de NOF
B30: NOF | C30: 0.2 | D30: x Ventas | F30: =$C$30*F11 -> 120 | G30: =$C$30*G11 -> 132 | H30: 0 | K30: Clientes | L30: 90 | N30: NOF COMO % VENTAS
B31: AF neto | C31: 0 | D31: Capex | E31: 300 | F31: =E31-F16+$C31 -> 240 | G31: =F31-G16+$C31 -> 180 | H31: 0 | K31: Existencias | L31: 10 | N31: =(L30+L31*0.85-L32*0.85)/365 -> 0.2
B32: AN activo neto | E32: =E31+E30 -> 300 | F32: =F31+F30 -> 360 | G32: =G31+G30 -> 312 | H32: =H31+H30 -> 0 | K32: Proveedores | L32: 30
B34: Línea de crédito D-Corto | C34: 0 | D34: x NOF | E34: =$C34*E30 -> 0 | F34: =$C34*F30 -> 0 | G34: =$C34*G30 -> 0 | H34: =$C34*H30 -> 0
B35: Préstamos, D-Largo | C35: 3 | D35: años | E35: 0 | F35: =E35-($E35/$C35) -> 0 | G35: =F35-($E35/$C35) -> 0 | H35: 0
B36: D, Deuda total | E36: =E34+E35 -> 0 | F36: =F34+F35 -> 0 | G36: =G34+G35 -> 0 | H36: =H34+H35 -> 0
B37: E, Equity o Patrimonio | E37: =E31-E35 -> 300 | F37: =E37+F21-F22 -> 332 | G37: =F37+G21-G22 -> 372 | H37: =G37+H21-H22 -> 420.8
B38: Financiación | E38: =E36+E37 -> 300 | F38: =F36+F37 -> 332 | G38: =G36+G37 -> 372 | H38: =H36+H37 -> 420.8
D40: Caja en el balance (+ o -) | E40: =E38-E32 -> 0 | F40: =F38-F32 -> -28 | G40: =G38-G32 -> 60 | H40: =H38-H32 -> 420.8
D41: Aumento anual de caja | F41: =F40-E40 -> -28 | G41: =G40-F40 -> 88 | H41: =H40-G40 -> 360.8
D42: ECF = Aumento de caja + dividendos pagados | E42: =-E37 -> -300 | F42: =F41+F22 -> -28 | G42: =G41+G22 -> 88 | H42: =H41+H22 -> 360.8
B44: CF para el accionista o ECF | E44: 0 | F44: 1 | G44: 2 | H44: 3
B45: Beneficio neto | F45: =F21 -> 32 | G45: =G21 -> 40 | H45: =H21 -> 48.8
B46: Variación de AN | E46: =-E32 -> -300 | F46: =E32-F32 -> -60 | G46: =F32-G32 -> 48 | H46: =G32-H32 -> 312
B47: Variación de Deuda | E47: =E36 -> 0 | F47: =F36-E36 -> 0 | G47: =G36-F36 -> 0 | H47: =H36-G36 -> 0 | I47: Suma de CF
B48: CF accionista | E48: =SUM(E45:E47) -> -300 | F48: =SUM(F45:F47) -> -28 | G48: =SUM(G45:G47) -> 88 | H48: =SUM(H45:H47) -> 360.8 | I48: =SUM(E48:H48) -> 120.8
B49: TIR = | C49: =IRR(E48:H48) -> 0.122493435
B51: FCF | E51: 0 | F51: 1 | G51: 2 | H51: 3
B52: EBIT x (1-t) | F52: =F17*(1-$C20) -> 32 | G52: =G17*(1-$C20) -> 40 | H52: =H17*(1-$C20) -> 48.8
B53: Variación de AN | E53: =E46 -> -300 | F53: =F46 -> -60 | G53: =G46 -> 48 | H53: =H46 -> 312
B54: FCF | E54: =SUM(E52:E53) -> -300 | F54: =SUM(F52:F53) -> -28 | G54: =SUM(G52:G53) -> 88 | H54: =SUM(H52:H53) -> 360.8
B55: IRR = | C55: =IRR(E54:H54) -> 0.122493435
B59: Riesgos. Análisis de sensibilidad | G59: CASO 2
C61: Riesgo Mayor
B62: Escenarios | C62: Base | D62: Peor | E62: Mejor | F62: Rango
B63: Precio | C63: 10 | D63: 9 | E63: 11
B64: TIR accionista | C64: 0.1 | D64: -0.05131943497 | E64: 0.2448103983 | F64: =E64-D64 -> 0.2961298333
B65: Coste de la máquina AF | C65: 300 | D65: 330 | E65: 270
B66: TIR accionista | C66: =C64 -> 0.1 | D66: 0.07900881485 | E66: 0.124559999 | F66: =E66-D66 -> 0.0455511841
B67: Tamaño de NOF | C67: 0.2 | D67: 0.25 | E67: 0.15
B68: TIR accionista | C68: =C64 -> 0.1 | D68: 0.09438647416 | E68: 0.1063271923 | F68: =E68-D68 -> 0.01194071812
B69: Riesgo Total | C69: 0.1 | D69: -0.05875157854 | E69: 0.3002768656 | F69: =E69-D69 -> 0.3590284441
B72: TIR y nivel de Deuda | G72: CASO 3
B73: Deuda | C73: TIR | D73: Aumento
B74: 60M€ o 20% del AF | C74: 0.128
B75: 120M€ o 40% del AF | C75: 0.149 | D75: =C75-C74 -> 0.021
B76: 180M€ o 60% del AF | C76: 0.183 | D76: =C76-C75 -> 0.034
B77: 240M€ o 80% del AF | C77: 0.251 | D77: =C77-C76 -> 0.068
G79: CASO 5
B81: CF para el accionista o ECF | D81: 0 | E81: 1 | F81: 2 | G81: 3 | H81: TIR | I81: Suma de CF
B82: Máquina nueva sin deuda (caso 1) | D82: -300 | E82: -28 | F82: 92 | G82: 332 | H82: =IRR(D82:G82) -> 0.1000188925 | I82: =SUM(D82:G82) -> 96
B83: Máquina nueva con deuda (caso 3) | D83: -120 | E83: 0.8 | F83: 23.36 | G83: 169.76 | H83: =IRR(D83:G83) -> 0.1826718657 | I83: =SUM(D83:G83) -> 73.92
B84: Máquina antigua CF (caso 5) | D84: 0 | E84: -88 | F84: 32 | G84: 152 | H84: =IRR(D84:G84) -> 0.5085926836 | I84: =SUM(D84:G84) -> 96

Sheet Anex 5 (hidden)
E1: Caso 5. Comparación de dos proyectos. RESUELTO
B2: Hipótesis en verde y negrita. Ver notas explicativas dentro de cada celda.
B4: PyG Hipótesis | C4: Hipótesis | F4: 1 | G4: 2 | H4: 3
B5: Número de piezas | C5: 60000 | F5: =C5 -> 60000 | G5: =F5 -> 60000 | H5: =G5 -> 60000
B6: Precio de venta por unidad en euros | C6: 10 | F6: =C6 -> 10 | G6: =F6*(1+$C$8) -> 10 | H6: =G6*(1+$C$8) -> 10
B7: Coste por unidad en euros | C7: 9 | F7: =C7 -> 9 | G7: =F7*(1+$C$8) -> 9 | H7: =G7*(1+$C$8) -> 9
B8: Inflación esperada | C8: 0
B10: PyG (€ ’000) | F10: 1 | G10: 2 | H10: 3
B11: Ventas | F11: =F5*F6/1000 -> 600 | G11: =G5*G6/1000 -> 600 | H11: =H5*H6/1000 -> 600
B12: Coste de las ventas | F12: =F7*F5/1000 -> 540 | G12: =G7*G5/1000 -> 540 | H12: =H7*H5/1000 -> 540
B13: Margen Bruto | F13: =F11-F12 -> 60 | G13: =G11-G12 -> 60 | H13: =H11-H12 -> 60
B14: Gastos generales | C14: 20 | F14: =C14 -> 20 | G14: =F14*(1+$C8) -> 20 | H14: =G14*(1+$C8) -> 20
B15: EBITDA | F15: =F13-F14 -> 40 | G15: =G13-G14 -> 40 | H15: =H13-H14 -> 40
B16: Amortización | C16: 5 | D16: Años | F16: =$E31*(1/$C$16) -> 0 | G16: =$E31*(1/$C$16) -> 0 | H16: =$E31*(1/$C$16) -> 0
B17: EBIT | F17: =F15-F16 -> 40 | G17: =G15-G16 -> 40 | H17: =H15-H16 -> 40
B18: Intereses | C18: 0.05 | F18: =E36*$C$18 -> 0 | G18: =F36*$C$18 -> 0 | H18: =G36*$C$18 -> 0
B19: Benef antes de impuestos | F19: =F17-F18 -> 40 | G19: =G17-G18 -> 40 | H19: =H17-H18 -> 40
B20: Impuestos | C20: 0.2 | F20: =F19*$C$20 -> 8 | G20: =G19*$C$20 -> 8 | H20: =H19*$C$20 -> 8
B21: Beneficio neto | F21: =F19-F20 -> 32 | G21: =G19-G20 -> 32 | H21: =H19-H20 -> 32
B22: Dividendos pagados | C22: 0 | F22: =$C22*F21 -> 0 | G22: =$C22*G21 -> 0 | H22: =$C22*H21 -> 0
I23: Promedio
B24: EBITDA / Inversión inicial | F24: =F15/$E$31 ->  | G24: =G15/$E$31 ->  | H24: =H15/$E$31 ->  | I24: =AVERAGE(F24:H24) -> 
B25: RONA (EBIT / AN) | F25: =F17/E32 ->  | G25: =G17/F32 -> 0.3333333333 | H25: =H17/G32 -> 0.3333333333 | I25: =AVERAGE(F25:H25) -> 
B26: ROA (Beneficio / AN) | F26: =F21/E32 ->  | G26: =G21/F32 -> 0.2666666667 | H26: =H21/G32 -> 0.2666666667 | I26: =AVERAGE(F26:H26) -> 
B27: ROE (Benef / Equity) | F27: =F21/E37 ->  | G27: =G21/F37 -> 1 | H27: =H21/G37 -> 0.5 | I27: =AVERAGE(F27:H27) -> 
B29: Balance resumido | E29: 0 | F29: 1 | G29: 2 | H29: 3 | K29: Hipótesis de NOF
B30: NOF | C30: 0.2 | D30: x Ventas | F30: =$C$30*F11 -> 120 | G30: =$C$30*G11 -> 120 | H30: 0 | K30: Clientes | L30: 90 | N30: NOF COMO % VENTAS
B31: AF neto | C31: 0 | D31: Capex | E31: 0 | F31: =E31-F16+$C31 -> 0 | G31: =F31-G16+$C31 -> 0 | H31: 0 | K31: Existencias | L31: 10 | N31: =(L30+L31*0.85-L32*0.85)/365 -> 0.2
B32: AN activo neto | E32: =E31+E30 -> 0 | F32: =F31+F30 -> 120 | G32: =G31+G30 -> 120 | H32: =H31+H30 -> 0 | K32: Proveedores | L32: 30
B34: Línea de crédito D-Corto | C34: 0 | D34: x NOF | E34: =$C34*E30 -> 0 | F34: =$C34*F30 -> 0 | G34: =$C34*G30 -> 0 | H34: =$C34*H30 -> 0
B35: Préstamos, D-Largo | C35: 3 | D35: años | E35: 0 | F35: =E35-($E35/$C35) -> 0 | G35: =F35-($E35/$C35) -> 0 | H35: 0
B36: D, Deuda total | E36: =E34+E35 -> 0 | F36: =F34+F35 -> 0 | G36: =G34+G35 -> 0 | H36: =H34+H35 -> 0
B37: E, Equity o Patrimonio | E37: =E31-E35 -> 0 | F37: =E37+F21-F22 -> 32 | G37: =F37+G21-G22 -> 64 | H37: =G37+H21-H22 -> 96
B38: Financiación | E38: =E36+E37 -> 0 | F38: =F36+F37 -> 32 | G38: =G36+G37 -> 64 | H38: =H36+H37 -> 96
D40: Caja en el balance (+ o -) | E40: =E38-E32 -> 0 | F40: =F38-F32 -> -88 | G40: =G38-G32 -> -56 | H40: =H38-H32 -> 96
D41: Aumento anual de caja | F41: =F40-E40 -> -88 | G41: =G40-F40 -> 32 | H41: =H40-G40 -> 152
D42: ECF = Aumento de caja + dividendos pagados | E42: =-E37 -> 0 | F42: =F41+F22 -> -88 | G42: =G41+G22 -> 32 | H42: =H41+H22 -> 152
B44: CF para el accionista o ECF | E44: 0 | F44: 1 | G44: 2 | H44: 3
B45: Beneficio neto | F45: =F21 -> 32 | G45: =G21 -> 32 | H45: =H21 -> 32
B46: Variación de AN | E46: =-E32 -> 0 | F46: =E32-F32 -> -120 | G46: =F32-G32 -> 0 | H46: =G32-H32 -> 120
B47: Variación de Deuda | E47: =E36 -> 0 | F47: =F36-E36 -> 0 | G47: =G36-F36 -> 0 | H47: =H36-G36 -> 0 | I47: Suma de CF
B48: CF accionista | E48: =SUM(E45:E47) -> 0 | F48: =SUM(F45:F47) -> -88 | G48: =SUM(G45:G47) -> 32 | H48: =SUM(H45:H47) -> 152 | I48: =SUM(E48:H48) -> 96
B49: TIR = | C49: =IRR(E48:H48) -> 0.5085926836
B51: FCF | E51: 0 | F51: 1 | G51: 2 | H51: 3
B52: EBIT x (1-t) | F52: =F17*(1-$C20) -> 32 | G52: =G17*(1-$C20) -> 32 | H52: =H17*(1-$C20) -> 32
B53: Variación de AN | E53: =E46 -> 0 | F53: =F46 -> -120 | G53: =G46 -> 0 | H53: =H46 -> 120
B54: FCF | E54: =SUM(E52:E53) -> 0 | F54: =SUM(F52:F53) -> -88 | G54: =SUM(G52:G53) -> 32 | H54: =SUM(H52:H53) -> 152
B55: IRR = | C55: =IRR(E54:H54) -> 0.5085926836
B59: Riesgos. Análisis de sensibilidad | G59: CASO 2
C61: Riesgo Mayor
B62: Escenarios | C62: Base | D62: Peor | E62: Mejor | F62: Rango
B63: Precio | C63: 10 | D63: 9 | E63: 11
B64: TIR accionista | C64: 0.1 | D64: -0.05131943497 | E64: 0.2448103983 | F64: =E64-D64 -> 0.2961298333
B65: Coste de la máquina AF | C65: 300 | D65: 330 | E65: 270
B66: TIR accionista | C66: =C64 -> 0.1 | D66: 0.07900881485 | E66: 0.124559999 | F66: =E66-D66 -> 0.0455511841
B67: Tamaño de NOF | C67: 0.2 | D67: 0.25 | E67: 0.15
B68: TIR accionista | C68: =C64 -> 0.1 | D68: 0.09438647416 | E68: 0.1063271923 | F68: =E68-D68 -> 0.01194071812
B69: Riesgo Total | C69: 0.1 | D69: -0.05875157854 | E69: 0.3002768656 | F69: =E69-D69 -> 0.3590284441
B72: TIR y nivel de Deuda | G72: CASO 3
B73: Deuda | C73: TIR | D73: Aumento
B74: 60M€ o 20% del AF | C74: 0.128
B75: 120M€ o 40% del AF | C75: 0.149 | D75: =C75-C74 -> 0.021
B76: 180M€ o 60% del AF | C76: 0.183 | D76: =C76-C75 -> 0.034
B77: 240M€ o 80% del AF | C77: 0.251 | D77: =C77-C76 -> 0.068
G79: CASO 5
B81: CF para el accionista o ECF | D81: 0 | E81: 1 | F81: 2 | G81: 3 | H81: TIR | I81: Suma de CF
B82: Máquina nueva sin deuda (caso 1) | D82: -300 | E82: -28 | F82: 92 | G82: 332 | H82: =IRR(D82:G82) -> 0.1000188925 | I82: =SUM(D82:G82) -> 96
B83: Máquina nueva con deuda (caso 3) | D83: -120 | E83: 0.8 | F83: 23.36 | G83: 169.76 | H83: =IRR(D83:G83) -> 0.1826718657 | I83: =SUM(D83:G83) -> 73.92
B84: Máquina antigua CF (caso 5) | D84: 0 | E84: -88 | F84: 32 | G84: 152 | H84: =IRR(D84:G84) -> 0.5085926836 | I84: =SUM(D84:G84) -> 96

Sheet Anex 6&7 (hidden)
E1: Caso 6. Proyecto de costes. ¿Compra o Renting? RESUELTO
B2: Hipótesis en verde y negrita. Ver notas explicativas dentro de cada celda.
G3: Compra
B4: P&L | C4: Hipótesis | F4: 1 | G4: 2 | H4: 3 | J4: Renting
B5: EBITDA | C5: 100 | F5: =$C5 -> 100 | G5: =$C5 -> 100 | H5: =$C5 -> 100 | J5: =$C5 -> 100
B6: Amortización o pago renting | C6: 5 | D6: años | F6: =E15/C6 -> 60 | G6: =F6 -> 60 | H6: =G6 -> 60 | J6: 85
B7: EBIT | F7: =F5-F6 -> 40 | G7: =G5-G6 -> 40 | H7: =H5-H6 -> 40 | J7: =J5-J6 -> 15 | M7: Renting
B8: Intereses | C8: 0.05 | F8: =$C8*E20 -> 9 | G8: =$C8*F20 -> 10.8 | H8: =$C8*G20 -> 7.8 | J8: =$C8*F18 -> 4.8 | M8: -300
B9: Benef antes de impuestos | F9: =F7-F8 -> 31 | G9: =G7-G8 -> 29.2 | H9: =H7-H8 -> 32.2 | J9: =J7-J8 -> 10.2 | M9: 85
B10: Impuestos | C10: 0.2 | F10: =$C10*F9 -> 6.2 | G10: =$C10*G9 -> 5.84 | H10: =$C10*H9 -> 6.44 | J10: =J9*C10 -> 2.04 | M10: =M9 -> 85
B11: Beneficio | F11: =F9-F10 -> 24.8 | G11: =G9-G10 -> 23.36 | H11: =H9-H10 -> 25.76 | J11: =J9-J10 -> 8.16 | M11: =M10 -> 85
M12: =M11 -> 85
B13: Balance con Compra | E13: 0 | F13: 1 | G13: 2 | H13: 3 | M13: =M12 -> 85
B14: NOF | F14: 120 | G14: =$F$14 -> 120 | H14: 0
B15: AF (máquina) | E15: 300 | F15: =E15-$F6 -> 240 | G15: =F15-$F6 -> 180 | H15: 0 | M15: =IRR(M8:M13) -> 0.1285846353
B16: AN activo neto | E16: =E14+E15 -> 300 | F16: =F14+F15 -> 360 | G16: =G14+G15 -> 300 | H16: =H15+H14 -> 0
B18: Línea de crédito D-Corto | C18: 0.8 | F18: =$C18*F14 -> 96 | G18: =$C18*G14 -> 96 | H18: =$C18*H14 -> 0
B19: Préstamos, D-Largo | C19: 3 | D19: años | E19: 180 | F19: =E19-($E19/$C19) -> 120 | G19: =F19-($E19/$C19) -> 60 | H19: 0
B20: D, Deuda total | E20: =E18+E19 -> 180 | F20: =F18+F19 -> 216 | G20: =G18+G19 -> 156 | H20: =H18+H19 -> 0
B21: E, Equity o Patrimonio | E21: =E15-E19 -> 120 | F21: =E21+$F$11 -> 144.8 | G21: =F21+$F$11 -> 169.6 | H21: =G21+$F$11 -> 194.4
B22: Financiación | E22: =E20+E21 -> 300 | F22: =F20+F21 -> 360.8 | G22: =G20+G21 -> 325.6 | H22: =H20+H21 -> 194.4
D23: Caja en el balance (+ o -) | E23: =E22-E16 -> 0 | F23: =F22-F16 -> 0.8 | G23: =G22-G16 -> 25.6 | H23: =H22-H16 -> 194.4
D24: Caja generada CF | E24: =-E21 -> -120 | F24: =F23-E23 -> 0.8 | G24: =G23-F23 -> 24.8 | H24: =H23-G23 -> 168.8
B26: CF accionista. Compra | E26: 0 | F26: 1 | G26: 2 | H26: 3
B27: Variación de AN | E27: =-E16 -> -300 | F27: =E16-F16 -> -60 | G27: =F16-G16 -> 60 | H27: =G16-H16 -> 300
B28: Variación de Deuda | E28: =E20 -> 180 | F28: =F20-E20 -> 36 | G28: =G20-F20 -> -60 | H28: =H20-G20 -> -156
B29: Beneficio neto (con compra) | F29: =$F$11 -> 24.8 | G29: =$F$11 -> 24.8 | H29: =$F$11 -> 24.8 | J29: Suma de CF
B30: CF accionista (Compra) | E30: =E27+E28+E29 -> -120 | F30: =F27+F28+F29 -> 0.8 | G30: =G27+G28+G29 -> 24.8 | H30: =H27+H28+H29 -> 168.8 | J30: =SUM(E30:H30) -> 74.4
B32: Rentabilidad requerida (K) = | C32: 0.13 | E32: VAN = | F32: =NPV(C32,F30:H30)+E30 -> 17.11686974 | G32: TIR = | H32: =IRR(E30:H30) -> 0.1842279669
B34: CF accionista. Renting | E34: 0 | F34: 1 | G34: 2 | H34: 3
B35: Variación de NOF | F35: =E14-F14 -> -120 | G35: =F14-G14 -> 0 | H35: =G14-H14 -> 120
B36: Cambios en línea de crédito | F36: =F18-E18 -> 96 | G36: =G18-F18 -> 0 | H36: =H18-G18 -> -96
B37: Beneficio, con renting | E37: 0 | F37: =$J$11 -> 8.16 | G37: =$J$11 -> 8.16 | H37: =$J$11 -> 8.16 | J37: Suma de CF
B38: CF accionista (Renting) | E38: =E35+E36+E37 -> 0 | F38: =F35+F36+F37 -> -15.84 | G38: =G35+G36+G37 -> 8.16 | H38: =H35+H36+H37 -> 32.16 | J38: =SUM(E38:H38) -> 24.48
E40: VAN = | F40: =NPV(C32,F38:H38)+E38 -> 14.66127104 | G40: TIR = | H40: =IRR(E38:H38) -> 0.7055565244
E44: Caso 7. Comparar Proyectos. RESUELTO
A46: Caso | B46: CF para el accionista o ECF | D46: 0 | E46: 1 | F46: 2 | G46: 3 | H46: TIR | J46: Suma de CF
A47: 1 | B47: Máquina nueva, sin deuda | D47: -300 | E47: -28 | F47: 92 | G47: 332 | H47: 0.1000188925 | J47: =SUM(D47:G47) -> 96 | Q47: New machine, no debt
A48: 2 | B48: Riesgos. Escenario peor | D48: -330 | E48: -89.8 | F48: 45.2 | G48: 312.2 | H48: -0.05875157854 | J48: -62.4 | Q48: Risks Worst
A49: 2 | B49: Riesgos. Escenario mejor | D49: -270 | E49: 39.8 | F49: 138.8 | G49: 345.8 | H49: 0.3002768656 | J49: 254.4 | Q49: Risks Best
A50: 3 | B50: Maquina nueva con deuda | D50: -120 | E50: 0.8 | F50: 23.36 | G50: 169.76 | H50: 0.1826718657 | J50: 73.92 | Q50: New machine with debt
A51: 3b | B51: Máquina nueva con deuda. Peor escenario | D51: -150 | E51: -49 | F51: -23.92 | G51: 137.48 | H51: -0.1745913865 | J51: -85.44 | Q51: New machine with debt, Worst case
A52: 3c | B52: Maquina nueva con deuda. Mejor escenario | D52: -90 | E52: 51.8 | F52: 70.832 | G52: 201.032 | H52: 0.7522264968 | J52: 233.664 | Q52: New machine with debt, Best case
A53: 4 | B53: Máquina nueva con inflación, sin deuda. | D53: -300 | E53: -28 | F53: 88 | G53: 360.8 | H53: 0.122493435 | J53: 120.8 | Q53: New machine with inflation, no debt
A54: 4b | B54: Nueva máquina con inflación y deuda | D54: -120 | E54: 0.8 | F54: 28.96 | G54: 188.576 | H54: 0.2340795223 | J54: 98.336 | Q54: New machine with inflation and debt
A55: 5 | B55: Maquina vieja, con 0 deuda | D55: 0 | E55: -88 | F55: 32 | G55: 152 | H55: 0.5085926836 | J55: 96 | Q55: Old machine, with 0 debt
A56: 5b | B56: Maquina vieja, con deuda | D56: 0 | E56: 8 | F56: 28.16 | G56: 52.16 | H56: na | J56: 88.32 | Q56: Old machine, with debt
A57: 6 | B57: Renting vs Comprar | D57: 0 | E57: -15.84 | F57: 8.16 | G57: 32.16 | H57: 0.71 | J57: 24.48 | Q57: Renting vs Buy

Sheet Cases 1-5 TO DO
E1: TEMPLATE TO SOLVE CASES 1 to 5
B2: Assumptions in bold and green. To do the calculations, see the notes inside of the cells.
B4: P&L assumptions | C4: Assumptions | F4: 1 | G4: 2 | H4: 3
B5: Pieces produced | C5: 60000 | F5: =C5 -> 60000 | G5: =F5 -> 60000 | H5: =G5 -> 60000
B6: Unit selling price in euros | C6: 10 | F6: =C6 -> 10 | G6: =F6*(1+$C$8) -> 10 | H6: =G6*(1+$C$8) -> 10
B7: Unit cost in euros | C7: 8 | F7: =C7 -> 8 | G7: =F7*(1+$C$8) -> 8 | H7: =G7*(1+$C$8) -> 8
B8: Expected inflation | C8: 0
B10: P&L (€ ’000) | F10: 1 | G10: 2 | H10: 3
B11: Sales
B12: Cost of Goods Sold
B13: Gross Margin
B14: Operating Expenses | C14: 20 | F14: =C14 -> 20 | G14: =F14*(1+$C8) -> 20 | H14: =G14*(1+$C8) -> 20
B15: EBITDA
B16: Depreciation | C16: 5 | D16: Year
B17: EBIT | F17: =F15-F16 -> 0 | G17: =G15-G16 -> 0 | H17: =H15-H16 -> 0
B18: Interest expense | C18: 0.05
B19: Earnings before tax | F19: =F17-F18 -> 0 | G19: =G17-G18 -> 0 | H19: =H17-H18 -> 0
B20: Tax | C20: 0.2 | F20: =F19*$C$20 -> 0 | G20: =G19*$C$20 -> 0 | H20: =H19*$C$20 -> 0
B21: Net Income | F21: =F19-F20 -> 0 | G21: =G19-G20 -> 0 | H21: =H19-H20 -> 0
B22: Dividends paid | C22: 0 | F22: =$C22*F21 -> 0 | G22: =$C22*G21 -> 0 | H22: 0
I23: Average
B24: EBITDA / Initial investment | F24: =F15/$E$31 -> 0 | G24: =G15/$E$31 -> 0 | H24: =H15/$E$31 -> 0 | I24: =AVERAGE(F24:H24) -> 0
B25: RONA (EBIT / NA) | F25: =F17/E32 -> 0 | G25: =G17/F32 ->  | H25: =H17/G32 ->  | I25: =AVERAGE(F25:H25) -> 
B26: ROA (Net Income / NA) | F26: =F21/E32 -> 0 | G26: =G21/F32 ->  | I26: =AVERAGE(F26:H26) -> 
B27: ROE (Net Inc / Equity) | F27: =F21/E37 ->  | G27: =G21/F37 ->  | H27: =H21/G37 ->  | I27: =AVERAGE(F27:H27) -> 
B29: Short Balance Sheet | E29: 0 | F29: 1 | G29: 2 | H29: 3 | K29: Assumptions for NFO
B30: NFO (20% Sales) | C30: 0.2 | D30: x Sales | F30: =$C$30*F11 -> 0 | G30: =$C$30*G11 -> 0 | H30: 0 | K30: Receivables | L30: 90 | N30: NFO AS % OF SALES
B31: FA, Net | C31: 0 | D31: Capex | E31: 300 | K31: Inventory | L31: 10 | N31: =(L30+L31*0.85-L32*0.85)/365 -> 0.2
B32: NA, Net Assets | E32: =E31+E30 -> 300 | F32: =F31+F30 -> 0 | G32: =G31+G30 -> 0 | H32: =H31+H30 -> 0 | K32: Payables | L32: 30
B34: Line of credit D-S | C34: 0 | D34: of NFO | E34: =$C34*E30 -> 0 | F34: =$C34*F30 -> 0 | G34: =$C34*G30 -> 0 | H34: 0
B35: Loan D-L | C35: 3 | D35: years | E35: 0 | F35: =E35-($E35/$C35) -> 0 | G35: =F35-($E35/$C35) -> 0 | H35: 0
B36: D, Total Debt | E36: =E34+E35 -> 0 | F36: =F34+F35 -> 0 | G36: =G34+G35 -> 0 | H36: 0
B37: E, Equity
B38: Total financing | E38: =E36+E37 -> 0 | F38: =F36+F37 -> 0 | G38: 0 | H38: 0
D40: Cash on balance sheet (+ or -)
D41: Annual increase in cash
D42: ECF = Increase of cash + dividends paid
B44: CF for the shareholder or ECF | E44: 0 | F44: 1 | G44: 2 | H44: 3
B45: Net Income
B46: Change in NA
B47: Change in Debt | I47: Sum CF
B48: Equity CF or CF shareholder | E48: =SUM(E45:E47) -> 0 | F48: =SUM(F45:F47) -> 0 | G48: =SUM(G45:G47) -> 0 | H48: =SUM(H45:H47) -> 0 | I48: =SUM(E48:H48) -> 0
B49: IRR = | C49: =IRR(E48:H48) -> 
B51: FCF after tax | E51: 0 | F51: 1 | G51: 2 | H51: 3
B52: EBIT x (1-t)
B53: Change in NA
B54: FCF after tax | E54: =SUM(E52:E53) -> 0 | F54: =SUM(F52:F53) -> 0 | G54: =SUM(G52:G53) -> 0 | H54: =SUM(H52:H53) -> 0
B55: IRR = | C55: =IRR(E54:H54) -> 
B59: Risks. Sensitivity Analysis. | G59: FOR CASE 2
D61: Biggest Risk
B62: Scenarios | C62: Base | D62: Worst | E62: Best | F62: Range
B63: Price | C63: 10 | D63: 9 | E63: 11
B64: IRR shareholder
B65: Cost of Machine FA | C65: 300 | D65: 330 | E65: 270
B66: IRR shareholder
B67: Size of NFO% | C67: 0.2 | D67: 0.25 | E67: 0.15
B68: IRR shareholder | F68: =E68-D68 -> 0
B69: Total Risk | F69: =E69-D69 -> 0
B72: IRR and Level of Debt | G72: FOR CASE 3
B73: Debt | C73: IRR | D73: Increase
B74: 60M€ or 20% of FA
B75: 120M€ or 40% of FA
B76: 180M€ or 60% of FA
B77: 240M€ or 80% of FA
G79: FOR CASE 5
B81: CF shareholder or ECF | D81: 0 | E81: 1 | F81: 2 | G81: 3 | H81: IRR | I81: Sum of CF
B82: New machine without debt (case1) | D82: -300 | E82: -28 | F82: 92 | G82: 332 | H82: =IRR(D82:G82) -> 0.1000188925 | I82: =SUM(D82:G82) -> 96
B83: New machine with debt (case 3) | D83: -120 | E83: 0.8 | F83: 23.36 | G83: 169.76 | H83: 0.1826718657 | I83: 73.92
B84: Old machine (case 5) | D84: 0 | E84: -88 | F84: 32 | G84: 152 | H84: =IRR(D84:G84) -> 0.5085926836 | I84: =SUM(D84:G84) -> 96

Sheet Case 6 TO DO
E1: Case 6. Cost reduction project. Buy or Rent? TO DO
B2: Assumptions in green and bold
G3: Buy
B4: P&L | C4: Assumptions | F4: 1 | G4: 2 | H4: 3 | J4: Rent
B5: EBITDA | C5: 100 | F5: =$C5 -> 100 | G5: =$C5 -> 100 | H5: 100 | J5: =$C5 -> 100
B6: Depreciation or lease payment | C6: 5 | D6: years | J6: 85
B7: EBIT | F7: =F5-F6 -> 100 | G7: =G5-G6 -> 100 | H7: 100 | J7: =J5-J6 -> 15 | M7: Rent
B8: Interest Expense | C8: 0.05 | M8: -300
B9: Earnings before tax | M9: 85
B10: Tax rate | C10: 0.2 | M10: =M9 -> 85
B11: NI, Net Income | M11: =M10 -> 85
M12: =M11 -> 85
B13: Balance sheet when buying | E13: 0 | F13: 1 | G13: 2 | H13: 3 | M13: =M12 -> 85
B14: NFO | F14: 120 | H14: 0
B15: FA (machine) | E15: 300 | H15: 0 | M15: =IRR(M8:M13) -> 0.1285846353
B16: NA, Net assets
B18: Line of credit (D-Short term) | C18: 0.8
B19: Loan (D-Long term) | C19: 3 | D19: years | E19: 180
B20: D, Total Debt
B21: E, Equity
B22: Equity + Debt
D23: Cash Surplus
D24: Cash generated CF
B26: CF shareholder when buying | E26: 0 | F26: 1 | G26: 2 | H26: 3
B27: Change in assets | E27: =-E16 -> 0 | F27: =E16-F16 -> 0 | G27: =F16-G16 -> 0 | H27: =G16-H16 -> 0
B28: Change in debt | E28: =E20 -> 0 | F28: =F20-E20 -> 0 | G28: =G20-F20 -> 0 | H28: 0
B29: Net Income | F29: =$F$11 -> 0 | G29: =$F$11 -> 0 | H29: =$F$11 -> 0 | J29: Sum of CF
B30: CF shareholder (Buy) | E30: =E27+E28+E29 -> 0 | F30: 0 | G30: 0 | H30: 0 | J30: =SUM(E30:H30) -> 0
B32: Required return (K) = | C32: 0.13 | E32: NPV = | F32: =NPV(C32,F30:H30)+E30 -> 0 | G32: IRR = | H32: =IRR(E30:H30) -> 
B34: CF shareholder when renting | E34: 0 | F34: 1 | G34: 2 | H34: 3
B35: Change in NFO
B36: Change in line of credit
B37: Net Income when renting | J37: Sum of CF
B38: CF shareholder (Rent) | J38: =SUM(E38:H38) -> 0
E40: NPV = | F40: =NPV(C32,F38:H38)+E38 -> 0 | G40: IRR = | H40: =IRR(E38:H38) -> 
E44: Case 7. Comparisons of Projects. SOLVED.
A46: Case | B46: CF shareholder or ECF | D46: 0 | E46: 1 | F46: 2 | G46: 3 | H46: IRR | J46: Sum of CF
A47: 1 | B47: New machine, no debt | D47: -300 | E47: -28 | F47: 92 | G47: 332 | H47: 0.1000188925 | J47: =SUM(D47:G47) -> 96
A48: 2 | B48: Risks Worst | D48: -330 | E48: -89.8 | F48: 45.2 | G48: 312.2 | H48: -0.05875157854 | J48: =SUM(D48:G48) -> -62.4
A49: 2 | B49: Risks Best | D49: -270 | E49: 39.8 | F49: 138.8 | G49: 345.8 | H49: 0.3002768656 | J49: =SUM(D49:G49) -> 254.4
A50: 3 | B50: New machine with debt | D50: -120 | E50: 0.8 | F50: 23.36 | G50: 169.76 | H50: 0.1826718657 | J50: =SUM(D50:G50) -> 73.92
A51: 3b | B51: New machine with debt, Worst case | D51: -150 | E51: -49 | F51: -23.92 | G51: 137.48 | H51: -0.1745913865 | J51: -85.44
A52: 3c | B52: New machine with debt, Best case | D52: -90 | E52: 51.8 | F52: 70.832 | G52: 201.032 | H52: 0.7522264968 | J52: 233.664
A53: 4 | B53: New machine with inflation, no debt | D53: -300 | E53: -28 | F53: 88 | G53: 360.8 | H53: 0.122493435 | J53: 120.8
A54: 4b | B54: New machine with inflation and debt | D54: -120 | E54: 0.8 | F54: 28.96 | G54: 188.576 | H54: 0.2340795223 | J54: 98.336
A55: 5 | B55: Old machine, with 0 debt | D55: 0 | E55: -88 | F55: 32 | G55: 152 | H55: 0.5085926836 | J55: 96
A56: 5b | B56: Old machine, with debt | D56: 0 | E56: 8 | F56: 28.16 | G56: 52.16 | H56: na | J56: 88.32
A57: 6 | B57: Renting vs Buy | D57: 0 | E57: -15.84 | F57: 8.16 | G57: 32.16 | H57: 0.71 | J57: 24.48

Sheet Exh 1&2
E1: Cases 1&2. Project return and risk. SOLVED
B2: Assumptions in bold and green. To do the calculations, see the notes inside of the cells.
B4: P&L assumptions | C4: Assumptions | F4: 1 | G4: 2 | H4: 3
B5: Pieces produced | C5: 60000 | F5: =C5 -> 60000 | G5: =F5 -> 60000 | H5: =G5 -> 60000
B6: Unit selling price in euros | C6: 10 | F6: =C6 -> 10 | G6: =F6*(1+$C$8) -> 10 | H6: =G6*(1+$C$8) -> 10
B7: Unit cost in euros | C7: 8 | F7: =C7 -> 8 | G7: =F7*(1+$C$8) -> 8 | H7: =G7*(1+$C$8) -> 8
B8: Expected inflation | C8: 0
B10: P&L (€ ’000) | F10: 1 | G10: 2 | H10: 3
B11: Sales | F11: =F5*F6/1000 -> 600 | G11: =G5*G6/1000 -> 600 | H11: =H5*H6/1000 -> 600
B12: Cost of Goods Sold | F12: =F7*F5/1000 -> 480 | G12: =G7*G5/1000 -> 480 | H12: =H7*H5/1000 -> 480
B13: Gross Margin | F13: =F11-F12 -> 120 | G13: =G11-G12 -> 120 | H13: =H11-H12 -> 120
B14: Operating Expenses | C14: 20 | F14: =C14 -> 20 | G14: =F14*(1+$C8) -> 20 | H14: =G14*(1+$C8) -> 20
B15: EBITDA | F15: =F13-F14 -> 100 | G15: =G13-G14 -> 100 | H15: =H13-H14 -> 100
B16: Depreciation | C16: 5 | D16: Year | F16: =$E31*(1/$C$16) -> 60 | G16: =$E31*(1/$C$16) -> 60 | H16: =$E31*(1/$C$16) -> 60
B17: EBIT | F17: =F15-F16 -> 40 | G17: =G15-G16 -> 40 | H17: =H15-H16 -> 40
B18: Interest expense | C18: 0.05 | F18: =E36*$C$18 -> 0 | G18: =F36*$C$18 -> 0 | H18: =G36*$C$18 -> 0
B19: Earnings before tax | F19: =F17-F18 -> 40 | G19: =G17-G18 -> 40 | H19: =H17-H18 -> 40
B20: Tax | C20: 0.2 | F20: =F19*$C$20 -> 8 | G20: =G19*$C$20 -> 8 | H20: =H19*$C$20 -> 8
B21: Net Income | F21: =F19-F20 -> 32 | G21: =G19-G20 -> 32 | H21: =H19-H20 -> 32
B22: Dividends paid | C22: 0 | F22: =$C22*F21 -> 0 | G22: =$C22*G21 -> 0 | H22: 0
I23: Average
B24: EBITDA / Initial investment | F24: =F15/$E$31 -> 0.3333333333 | G24: =G15/$E$31 -> 0.3333333333 | H24: =H15/$E$31 -> 0.3333333333 | I24: =AVERAGE(F24:H24) -> 0.3333333333
B25: RONA (EBIT / NA) | F25: =F17/E32 -> 0.1333333333 | G25: =G17/F32 -> 0.1111111111 | H25: =H17/G32 -> 0.1333333333 | I25: =AVERAGE(F25:H25) -> 0.1259259259
B26: ROA (Net Income / NA) | F26: =F21/E32 -> 0.1066666667 | G26: =G21/F32 -> 0.08888888889 | H26: 0.1066666667 | I26: =AVERAGE(F26:H26) -> 0.1007407407
B27: ROE (Net Inc / Equity) | F27: =F21/E37 -> 0.1066666667 | G27: =G21/F37 -> 0.09638554217 | H27: =H21/G37 -> 0.08791208791 | I27: =AVERAGE(F27:H27) -> 0.09698809892
B29: Short Balance Sheet | E29: 0 | F29: 1 | G29: 2 | H29: 3 | K29: Assumptions for NFO
B30: NFO (20% Sales) | C30: 0.2 | D30: x Sales | F30: =$C$30*F11 -> 120 | G30: =$C$30*G11 -> 120 | H30: 0 | K30: Receivables | L30: 90 | N30: NFO AS % OF SALES
B31: FA, Net | C31: 0 | D31: Capex | E31: 300 | F31: =E31-F16+$C31 -> 240 | G31: =F31-G16+$C31 -> 180 | H31: 0 | K31: Inventory | L31: 10 | N31: =(L30+L31*0.85-L32*0.85)/365 -> 0.2
B32: NA, Net Assets | E32: =E31+E30 -> 300 | F32: =F31+F30 -> 360 | G32: =G31+G30 -> 300 | H32: =H31+H30 -> 0 | K32: Payables | L32: 30
B34: Line of credit D-S | C34: 0 | D34: of NFO | E34: =$C34*E30 -> 0 | F34: =$C34*F30 -> 0 | G34: =$C34*G30 -> 0 | H34: 0
B35: Loan D-L | C35: 3 | D35: years | E35: 0 | F35: =E35-($E35/$C35) -> 0 | G35: =F35-($E35/$C35) -> 0 | H35: 0
B36: D, Total Debt | E36: =E34+E35 -> 0 | F36: =F34+F35 -> 0 | G36: =G34+G35 -> 0 | H36: 0
B37: E, Equity | E37: =E31-E35 -> 300 | F37: =E37+F21-F22 -> 332 | G37: =F37+G21-G22 -> 364 | H37: 396
B38: Total financing | E38: =E36+E37 -> 300 | F38: =F36+F37 -> 332 | G38: 364 | H38: 396
D40: Cash on balance sheet (+ or -) | E40: =E38-E32 -> 0 | F40: =F38-F32 -> -28 | G40: =G38-G32 -> 64 | H40: =H38-H32 -> 396
D41: Annual increase in cash | F41: =F40-E40 -> -28 | G41: =G40-F40 -> 92 | H41: =H40-G40 -> 332
D42: ECF = Increase of cash + dividends paid | E42: =-E37 -> -300 | F42: =F41+F22 -> -28 | G42: =G41+G22 -> 92 | H42: 332
B44: CF for the shareholder or ECF | E44: 0 | F44: 1 | G44: 2 | H44: 3
B45: Net Income | F45: =F21 -> 32 | G45: =G21 -> 32 | H45: =H21 -> 32
B46: Change in NA | E46: =-E32 -> -300 | F46: =E32-F32 -> -60 | G46: =F32-G32 -> 60 | H46: =G32-H32 -> 300
B47: Change in Debt | E47: =E36 -> 0 | F47: =F36-E36 -> 0 | G47: =G36-F36 -> 0 | H47: =H36-G36 -> 0 | I47: Sum CF
B48: Equity CF or CF shareholder | E48: =SUM(E45:E47) -> -300 | F48: =SUM(F45:F47) -> -28 | G48: =SUM(G45:G47) -> 92 | H48: =SUM(H45:H47) -> 332 | I48: =SUM(E48:H48) -> 96
B49: IRR = | C49: =IRR(E48:H48) -> 0.1000188925
B51: FCF after tax | E51: 0 | F51: 1 | G51: 2 | H51: 3
B52: EBIT x (1-t) | F52: =F17*(1-$C20) -> 32 | G52: =G17*(1-$C20) -> 32 | H52: =H17*(1-$C20) -> 32
B53: Change in NA | E53: =E46 -> -300 | F53: =F46 -> -60 | G53: 60 | H53: 300
B54: FCF after tax | E54: =SUM(E52:E53) -> -300 | F54: =SUM(F52:F53) -> -28 | G54: =SUM(G52:G53) -> 92 | H54: =SUM(H52:H53) -> 332
B55: IRR = | C55: =IRR(E54:H54) -> 0.1000188925
B59: Risks. Sensitivity Analysis. | G59: FOR CASE 2
D61: Biggest Risk
B62: Scenarios | C62: Base | D62: Worst | E62: Best | F62: Range
B63: Price | C63: 10 | D63: 9 | E63: 11
B64: IRR shareholder | C64: 0.1 | D64: -0.05131943497 | E64: 0.2448103983 | F64: =E64-D64 -> 0.2961298333
B65: Cost of Machine FA | C65: 300 | D65: 330 | E65: 270
B66: IRR shareholder | C66: =C64 -> 0.1 | D66: 0.07900881485 | E66: 0.124559999 | F66: =E66-D66 -> 0.0455511841
B67: Size of NFO% | C67: 0.2 | D67: 0.25 | E67: 0.15
B68: IRR shareholder | C68: =C64 -> 0.1 | D68: 0.09438647416 | E68: 0.1063271923 | F68: =E68-D68 -> 0.01194071812
B69: Total Risk | C69: 0.1 | D69: -0.05875157854 | E69: 0.3002768656 | F69: =E69-D69 -> 0.3590284441
B72: IRR and Level of Debt | G72: FOR CASE 3
B73: Debt | C73: IRR | D73: Increase
B74: 60M€ or 20% of FA | C74: 0.128
B75: 120M€ or 40% of FA | C75: 0.149 | D75: =C75-C74 -> 0.021
B76: 180M€ or 60% of FA | C76: 0.183 | D76: =C76-C75 -> 0.034
B77: 240M€ or 80% of FA | C77: 0.251 | D77: 0.068
G79: FOR CASE 5
B81: CF shareholder or ECF | D81: 0 | E81: 1 | F81: 2 | G81: 3 | H81: IRR | I81: Sum of CF
B82: New machine without debt (case1) | D82: -300 | E82: -28 | F82: 92 | G82: 332 | H82: =IRR(D82:G82) -> 0.1000188925 | I82: =SUM(D82:G82) -> 96
B83: New machine with debt (case 3) | D83: -120 | E83: 0.8 | F83: 23.36 | G83: 169.76 | H83: 0.1826718657 | I83: 73.92
B84: Old machine (case 5) | D84: 0 | E84: -88 | F84: 32 | G84: 152 | H84: =IRR(D84:G84) -> 0.5085926836 | I84: =SUM(D84:G84) -> 96

Sheet Exh 3
E1: Cases 3. Project financed with debt. SOLVED
B2: Assumptions in bold and green. To do the calculations, see the notes inside of the cells.
K3: Assumptions for NFO
B4: P&L assumptions | C4: Assumptions | F4: 1 | G4: 2 | H4: 3 | K4: Receivables | L4: 90 | N4: NFO AS % OF SALES
B5: Pieces produced | C5: 60000 | F5: =C5 -> 60000 | G5: =F5 -> 60000 | H5: =G5 -> 60000 | K5: Inventory | L5: 10 | N5: =(L4+L5*0.85-L6*0.85)/365 -> 0.2
B6: Unit selling price in euros | C6: 10 | F6: =C6 -> 10 | G6: =F6*(1+$C$8) -> 10 | H6: =G6*(1+$C$8) -> 10 | K6: Payables | L6: 30
B7: Unit cost in euros | C7: 8 | F7: =C7 -> 8 | G7: =F7*(1+$C$8) -> 8 | H7: =G7*(1+$C$8) -> 8
B8: Expected inflation | C8: 0
B10: P&L (€ ’000) | F10: 1 | G10: 2 | H10: 3
B11: Sales | F11: =F5*F6/1000 -> 600 | G11: =G5*G6/1000 -> 600 | H11: =H5*H6/1000 -> 600
B12: Cost of Goods Sold | F12: =F7*F5/1000 -> 480 | G12: =G7*G5/1000 -> 480 | H12: =H7*H5/1000 -> 480
B13: Gross Margin | F13: =F11-F12 -> 120 | G13: =G11-G12 -> 120 | H13: =H11-H12 -> 120
B14: Operating Expenses | C14: 20 | F14: =C14 -> 20 | G14: =F14*(1+$C8) -> 20 | H14: =G14*(1+$C8) -> 20
B15: EBITDA | F15: =F13-F14 -> 100 | G15: =G13-G14 -> 100 | H15: =H13-H14 -> 100
B16: Depreciation | C16: 5 | D16: Year | F16: =$E31*(1/$C$16) -> 60 | G16: =$E31*(1/$C$16) -> 60 | H16: =$E31*(1/$C$16) -> 60
B17: EBIT | F17: =F15-F16 -> 40 | G17: =G15-G16 -> 40 | H17: =H15-H16 -> 40
B18: Interest expense | C18: 0.05 | F18: =E36*$C$18 -> 9 | G18: =F36*$C$18 -> 10.8 | H18: =G36*$C$18 -> 7.8
B19: Earnings before tax | F19: =F17-F18 -> 31 | G19: =G17-G18 -> 29.2 | H19: =H17-H18 -> 32.2
B20: Tax | C20: 0.2 | F20: =F19*$C$20 -> 6.2 | G20: =G19*$C$20 -> 5.84 | H20: =H19*$C$20 -> 6.44
B21: Net Income | F21: =F19-F20 -> 24.8 | G21: =G19-G20 -> 23.36 | H21: =H19-H20 -> 25.76
B22: Dividends paid | C22: 0 | F22: =$C22*F21 -> 0 | G22: =$C22*G21 -> 0 | H22: 0
I23: Average
B24: EBITDA / Initial investment | F24: =F15/$E$31 -> 0.3333333333 | G24: =G15/$E$31 -> 0.3333333333 | H24: =H15/$E$31 -> 0.3333333333 | I24: =AVERAGE(F24:H24) -> 0.3333333333
B25: RONA (EBIT / NA) | F25: =F17/E32 -> 0.1333333333 | G25: =G17/F32 -> 0.1111111111 | H25: =H17/G32 -> 0.1333333333 | I25: =AVERAGE(F25:H25) -> 0.1259259259
B26: ROA (Net Income / NA) | F26: =F21/E32 -> 0.08266666667 | G26: =G21/F32 -> 0.06488888889 | H26: 0.08586666667 | I26: =AVERAGE(F26:H26) -> 0.07780740741
B27: ROE (Net Inc / Equity) | F27: =F21/E37 -> 0.2066666667 | G27: =G21/F37 -> 0.1613259669 | H27: =H21/G37 -> 0.1531874405 | I27: =AVERAGE(F27:H27) -> 0.1737266914
B29: Short Balance Sheet | E29: 0 | F29: 1 | G29: 2 | H29: 3
B30: NFO (20% Sales) | C30: 0.2 | D30: x Sales | F30: =$C$30*F11 -> 120 | G30: =$C$30*G11 -> 120 | H30: 0
B31: FA, Net | C31: 0 | D31: Capex | E31: 300 | F31: =E31-F16+$C31 -> 240 | G31: =F31-G16+$C31 -> 180 | H31: 0
B32: NA, Net Assets | E32: =E31+E30 -> 300 | F32: =F31+F30 -> 360 | G32: =G31+G30 -> 300 | H32: =H31+H30 -> 0
B34: Line of credit D-S | C34: 0.8 | D34: of NFO | E34: =$C34*E30 -> 0 | F34: =$C34*F30 -> 96 | G34: =$C34*G30 -> 96 | H34: 0
B35: Loan D-L | C35: 3 | D35: years | E35: 180 | F35: =E35-($E35/$C35) -> 120 | G35: =F35-($E35/$C35) -> 60 | H35: 0
B36: D, Total Debt | E36: =E34+E35 -> 180 | F36: =F34+F35 -> 216 | G36: =G34+G35 -> 156 | H36: 0
B37: E, Equity | E37: =E31-E35 -> 120 | F37: =E37+F21-F22 -> 144.8 | G37: =F37+G21-G22 -> 168.16 | H37: 193.92
B38: Total financing | E38: =E36+E37 -> 300 | F38: =F36+F37 -> 360.8 | G38: 324.16 | H38: 193.92
D40: Cash on balance sheet (+ or -) | E40: =E38-E32 -> 0 | F40: =F38-F32 -> 0.8 | G40: =G38-G32 -> 24.16 | H40: =H38-H32 -> 193.92
D41: Annual increase in cash | F41: =F40-E40 -> 0.8 | G41: =G40-F40 -> 23.36 | H41: =H40-G40 -> 169.76
D42: ECF = Increase of cash + dividends paid | E42: =-E37 -> -120 | F42: =F41+F22 -> 0.8 | G42: =G41+G22 -> 23.36 | H42: 169.76
B44: CF for the shareholder | E44: 0 | F44: 1 | G44: 2 | H44: 3
B45: Net Income | F45: =F21 -> 24.8 | G45: =G21 -> 23.36 | H45: =H21 -> 25.76
B46: Change in NA | E46: =-E32 -> -300 | F46: =E32-F32 -> -60 | G46: =F32-G32 -> 60 | H46: =G32-H32 -> 300
B47: Change in Debt | E47: =E36 -> 180 | F47: =F36-E36 -> 36 | G47: =G36-F36 -> -60 | H47: =H36-G36 -> -156 | I47: Sum of CF
B48: Equity CF or CF shareholder | E48: =SUM(E45:E47) -> -120 | F48: =SUM(F45:F47) -> 0.8 | G48: =SUM(G45:G47) -> 23.36 | H48: =SUM(H45:H47) -> 169.76 | I48: =SUM(E48:H48) -> 73.92
B49: IRR = | C49: =IRR(E48:H48) -> 0.1826718657
B51: FCF after tax | E51: 0 | F51: 1 | G51: 2 | H51: 3
B52: EBIT x (1-t) | F52: =F17*(1-$C20) -> 32 | G52: =G17*(1-$C20) -> 32 | H52: =H17*(1-$C20) -> 32
B53: Change in NA | E53: =E46 -> -300 | F53: =F46 -> -60 | G53: 60 | H53: 300
B54: FCF after tax | E54: =SUM(E52:E53) -> -300 | F54: =SUM(F52:F53) -> -28 | G54: =SUM(G52:G53) -> 92 | H54: =SUM(H52:H53) -> 332
B55: IRR = | C55: =IRR(E54:H54) -> 0.1000188925
B59: Risks. Sensitivity Analysis.
C61: Biggest Risk
B62: Scenarios | C62: Base | D62: Worst | E62: Best | F62: Range
B63: Price | C63: 10 | D63: 9 | E63: 11
B64: IRR shareholder | C64: 0.1 | D64: -0.05131943497 | E64: 0.2448103983 | F64: =E64-D64 -> 0.2961298333
B65: Cost of Machine FA | C65: 300 | D65: 330 | E65: 270
B66: IRR shareholder | C66: =C64 -> 0.1 | D66: 0.07900881485 | E66: 0.124559999 | F66: =E66-D66 -> 0.0455511841
B67: Size of NFO% | C67: 0.2 | D67: 0.25 | E67: 0.15
B68: IRR shareholder | C68: =C64 -> 0.1 | D68: 0.09438647416 | E68: 0.1063271923 | F68: =E68-D68 -> 0.01194071812
B69: Total Risk | C69: 0.1 | D69: -0.05875157854 | E69: 0.3002768656 | F69: =E69-D69 -> 0.3590284441
B72: IRR and Level of Debt
B73: Debt | C73: IRR | D73: Increase
B74: 60M€ or 20% of FA | C74: 0.128
B75: 120M€ or 40% of FA | C75: 0.149 | D75: =C75-C74 -> 0.021
B76: 180M€ or 60% of FA | C76: 0.183 | D76: =C76-C75 -> 0.034
B77: 240M€ or 80% of FA | C77: 0.251 | D77: 0.068

Sheet Exh 4
E1: Case 4. Project with inflation. SOLVED
B2: Assumptions in bold and green. To do the calculations, see the notes inside of the cells.
K3: Assumptions for NFO
B4: P&L assumptions | C4: Assumptions | F4: 1 | G4: 2 | H4: 3 | K4: Receivables | L4: 90 | N4: NFO AS % OF SALES
B5: Pieces produced | C5: 60000 | F5: =C5 -> 60000 | G5: =F5 -> 60000 | H5: =G5 -> 60000 | K5: Inventory | L5: 10 | N5: =(L4+L5*0.85-L6*0.85)/365 -> 0.2
B6: Unit selling price in euros | C6: 10 | F6: =C6 -> 10 | G6: =F6*(1+$C$8) -> 11 | H6: =G6*(1+$C$8) -> 12.1 | K6: Payables | L6: 30
B7: Unit cost in euros | C7: 8 | F7: =C7 -> 8 | G7: =F7*(1+$C$8) -> 8.8 | H7: =G7*(1+$C$8) -> 9.68
B8: Expected inflation | C8: 0.1
B10: P&L (€ ’000) | F10: 1 | G10: 2 | H10: 3
B11: Sales | F11: =F5*F6/1000 -> 600 | G11: =G5*G6/1000 -> 660 | H11: =H5*H6/1000 -> 726
B12: Cost of Goods Sold | F12: =F7*F5/1000 -> 480 | G12: =G7*G5/1000 -> 528 | H12: =H7*H5/1000 -> 580.8 | K12: Case 5. Comparison of two projects. SOLVED
B13: Gross Margin | F13: =F11-F12 -> 120 | G13: =G11-G12 -> 132 | H13: =H11-H12 -> 145.2
B14: Operating Expenses | C14: 20 | F14: =C14 -> 20 | G14: =F14*(1+$C8) -> 22 | H14: =G14*(1+$C8) -> 24.2
B15: EBITDA | F15: =F13-F14 -> 100 | G15: =G13-G14 -> 110 | H15: =H13-H14 -> 121
B16: Depreciation | C16: 5 | D16: Year | F16: =$E31*(1/$C$16) -> 60 | G16: =$E31*(1/$C$16) -> 60 | H16: =$E31*(1/$C$16) -> 60
B17: EBIT | F17: =F15-F16 -> 40 | G17: =G15-G16 -> 50 | H17: =H15-H16 -> 61
B18: Interest expense | C18: 0.05 | F18: =E36*$C$18 -> 0 | G18: =F36*$C$18 -> 0 | H18: =G36*$C$18 -> 0
B19: Earnings before tax | F19: =F17-F18 -> 40 | G19: =G17-G18 -> 50 | H19: =H17-H18 -> 61
B20: Tax | C20: 0.2 | F20: =F19*$C$20 -> 8 | G20: =G19*$C$20 -> 10 | H20: =H19*$C$20 -> 12.2
B21: Net Income | F21: =F19-F20 -> 32 | G21: =G19-G20 -> 40 | H21: =H19-H20 -> 48.8
B22: Dividends paid | C22: 0 | F22: =$C22*F21 -> 0 | G22: =$C22*G21 -> 0 | H22: 0
I23: Average
B24: EBITDA / Initial investment | F24: =F15/$E$31 -> 0.3333333333 | G24: =G15/$E$31 -> 0.3666666667 | H24: =H15/$E$31 -> 0.4033333333 | I24: =AVERAGE(F24:H24) -> 0.3677777778
B25: RONA (EBIT / NA) | F25: =F17/E32 -> 0.1333333333 | G25: =G17/F32 -> 0.1388888889 | H25: =H17/G32 -> 0.1955128205 | I25: =AVERAGE(F25:H25) -> 0.1559116809
B26: ROA (Net Income / NA) | F26: =F21/E32 -> 0.1066666667 | G26: =G21/F32 -> 0.1111111111 | H26: 0.1564102564 | I26: =AVERAGE(F26:H26) -> 0.1247293447
B27: ROE (Net Inc / Equity) | F27: =F21/E37 -> 0.1066666667 | G27: =G21/F37 -> 0.1204819277 | H27: =H21/G37 -> 0.1311827957 | I27: =AVERAGE(F27:H27) -> 0.1194437967
B29: Short Balance Sheet | E29: 0 | F29: 1 | G29: 2 | H29: 3
B30: NFO (20% Sales) | C30: 0.2 | D30: x Sales | F30: =$C$30*F11 -> 120 | G30: =$C$30*G11 -> 132 | H30: 0
B31: FA, Net | C31: 0 | D31: Capex | E31: 300 | F31: =E31-F16+$C31 -> 240 | G31: =F31-G16+$C31 -> 180 | H31: 0
B32: NA, Net Assets | E32: =E31+E30 -> 300 | F32: =F31+F30 -> 360 | G32: =G31+G30 -> 312 | H32: =H31+H30 -> 0
B34: Line of credit D-S | C34: 0 | D34: of NFO | E34: =$C34*E30 -> 0 | F34: =$C34*F30 -> 0 | G34: =$C34*G30 -> 0 | H34: 0
B35: Loan D-L | C35: 3 | D35: years | E35: 0 | F35: =E35-($E35/$C35) -> 0 | G35: =F35-($E35/$C35) -> 0 | H35: 0
B36: D, Total Debt | E36: =E34+E35 -> 0 | F36: =F34+F35 -> 0 | G36: =G34+G35 -> 0 | H36: 0
B37: E, Equity | E37: =E31-E35 -> 300 | F37: =E37+F21-F22 -> 332 | G37: =F37+G21-G22 -> 372 | H37: 420.8
B38: Total financing | E38: =E36+E37 -> 300 | F38: =F36+F37 -> 332 | G38: 372 | H38: 420.8
D40: Cash on balance sheet (+ or -) | E40: =E38-E32 -> 0 | F40: =F38-F32 -> -28 | G40: =G38-G32 -> 60 | H40: =H38-H32 -> 420.8
D41: Annual increase in cash | F41: =F40-E40 -> -28 | G41: =G40-F40 -> 88 | H41: =H40-G40 -> 360.8
D42: ECF = Increase of cash + dividends paid | E42: =-E37 -> -300 | F42: =F41+F22 -> -28 | G42: =G41+G22 -> 88 | H42: 360.8
B44: CF for the shareholder | E44: 0 | F44: 1 | G44: 2 | H44: 3
B45: Net Income | F45: =F21 -> 32 | G45: =G21 -> 40 | H45: =H21 -> 48.8
B46: Change in NA | E46: =-E32 -> -300 | F46: =E32-F32 -> -60 | G46: =F32-G32 -> 48 | H46: =G32-H32 -> 312
B47: Change in Debt | E47: =E36 -> 0 | F47: =F36-E36 -> 0 | G47: =G36-F36 -> 0 | H47: =H36-G36 -> 0 | I47: Sum of CF
B48: Equity CF or CF shareholder | E48: =SUM(E45:E47) -> -300 | F48: =SUM(F45:F47) -> -28 | G48: =SUM(G45:G47) -> 88 | H48: =SUM(H45:H47) -> 360.8 | I48: =SUM(E48:H48) -> 120.8
B49: IRR = | C49: =IRR(E48:H48) -> 0.122493435
B51: FCF after tax | E51: 0 | F51: 1 | G51: 2 | H51: 3
B52: EBIT x (1-t) | F52: =F17*(1-$C20) -> 32 | G52: =G17*(1-$C20) -> 40 | H52: =H17*(1-$C20) -> 48.8
B53: Change in NA | E53: =E46 -> -300 | F53: =F46 -> -60 | G53: 48 | H53: 312
B54: FCF after tax | E54: =SUM(E52:E53) -> -300 | F54: =SUM(F52:F53) -> -28 | G54: =SUM(G52:G53) -> 88 | H54: =SUM(H52:H53) -> 360.8
B55: IRR = | C55: =IRR(E54:H54) -> 0.122493435
B59: Risks. Sensitivity Analysis.
C61: Biggest Risk
B62: Scenarios | C62: Base | D62: Worst | E62: Best | F62: Range
B63: Price | C63: 10 | D63: 9 | E63: 11
B64: IRR shareholder | C64: 0.1 | D64: -0.05131943497 | E64: 0.2448103983 | F64: =E64-D64 -> 0.2961298333
B65: Cost of Machine FA | C65: 300 | D65: 330 | E65: 270
B66: IRR shareholder | C66: =C64 -> 0.1 | D66: 0.07900881485 | E66: 0.124559999 | F66: =E66-D66 -> 0.0455511841
B67: Size of NFO% | C67: 0.2 | D67: 0.25 | E67: 0.15
B68: IRR shareholder | C68: =C64 -> 0.1 | D68: 0.09438647416 | E68: 0.1063271923 | F68: =E68-D68 -> 0.01194071812
B69: Total Risk | C69: 0.1 | D69: -0.05875157854 | E69: 0.3002768656 | F69: =E69-D69 -> 0.3590284441
B72: IRR and Level of Debt
B73: Debt | C73: IRR | D73: Increase
B74: 60M€ or 20% of FA | C74: 0.128
B75: 120M€ or 40% of FA | C75: 0.149 | D75: =C75-C74 -> 0.021
B76: 180M€ or 60% of FA | C76: 0.183 | D76: =C76-C75 -> 0.034
B77: 240M€ or 80% of FA | C77: 0.251 | D77: 0.068

Sheet Exh 5
E1: Case 5. Comparison of two projects. SOLVED
B2: Assumptions in bold and green. To do the calculations, see the notes inside of the cells.
K3: Assumptions for NFO
B4: P&L assumptions | C4: Assumptions | F4: 1 | G4: 2 | H4: 3 | K4: Receivables | L4: 90 | N4: NFO AS % OF SALES
B5: Pieces produced | C5: 60000 | F5: =C5 -> 60000 | G5: =F5 -> 60000 | H5: =G5 -> 60000 | K5: Inventory | L5: 10 | N5: =(L4+L5*0.85-L6*0.85)/365 -> 0.2
B6: Unit selling price in euros | C6: 10 | F6: =C6 -> 10 | G6: =F6*(1+$C$8) -> 10 | H6: =G6*(1+$C$8) -> 10 | K6: Payables | L6: 30
B7: Unit cost in euros | C7: 9 | F7: =C7 -> 9 | G7: =F7*(1+$C$8) -> 9 | H7: =G7*(1+$C$8) -> 9
B8: Expected inflation | C8: 0
B10: P&L (€ ’000) | F10: 1 | G10: 2 | H10: 3
B11: Sales | F11: =F5*F6/1000 -> 600 | G11: =G5*G6/1000 -> 600 | H11: =H5*H6/1000 -> 600
B12: Cost of Goods Sold | F12: =F7*F5/1000 -> 540 | G12: =G7*G5/1000 -> 540 | H12: =H7*H5/1000 -> 540 | K12: Case 5. Comparison of two projects. SOLVED
B13: Gross Margin | F13: =F11-F12 -> 60 | G13: =G11-G12 -> 60 | H13: =H11-H12 -> 60
B14: Operating Expenses | C14: 20 | F14: =C14 -> 20 | G14: =F14*(1+$C8) -> 20 | H14: =G14*(1+$C8) -> 20
B15: EBITDA | F15: =F13-F14 -> 40 | G15: =G13-G14 -> 40 | H15: =H13-H14 -> 40
B16: Depreciation | C16: 5 | D16: Year | F16: =$E31*(1/$C$16) -> 0 | G16: =$E31*(1/$C$16) -> 0 | H16: =$E31*(1/$C$16) -> 0
B17: EBIT | F17: =F15-F16 -> 40 | G17: =G15-G16 -> 40 | H17: =H15-H16 -> 40
B18: Interest expense | C18: 0.05 | F18: =E36*$C$18 -> 0 | G18: =F36*$C$18 -> 0 | H18: =G36*$C$18 -> 0
B19: Earnings before tax | F19: =F17-F18 -> 40 | G19: =G17-G18 -> 40 | H19: =H17-H18 -> 40
B20: Tax | C20: 0.2 | F20: =F19*$C$20 -> 8 | G20: =G19*$C$20 -> 8 | H20: =H19*$C$20 -> 8
B21: Net Income | F21: =F19-F20 -> 32 | G21: =G19-G20 -> 32 | H21: =H19-H20 -> 32
B22: Dividends paid | C22: 0 | F22: =$C22*F21 -> 0 | G22: =$C22*G21 -> 0 | H22: 0
I23: Average
B24: EBITDA / Initial investment | F24: na | G24: na | H24: na | I24: na
B25: RONA (EBIT / NA) | F25: na | G25: =G17/F32 -> 0.3333333333 | H25: =H17/G32 -> 0.3333333333 | I25: =AVERAGE(F25:H25) -> 0.3333333333
B26: ROA (Net Income / NA) | F26: na | G26: =G21/F32 -> 0.2666666667 | H26: 0.2666666667 | I26: =AVERAGE(F26:H26) -> 0.2666666667
B27: ROE (Net Inc / Equity) | F27: na | G27: =G21/F37 -> 1 | H27: =H21/G37 -> 0.5 | I27: =AVERAGE(F27:H27) -> 0.75
B29: Short Balance Sheet | E29: 0 | F29: 1 | G29: 2 | H29: 3
B30: NFO (20% Sales) | C30: 0.2 | D30: x Sales | F30: =$C$30*F11 -> 120 | G30: =$C$30*G11 -> 120 | H30: 0
B31: FA, Net | C31: 0 | D31: Capex | E31: 0 | F31: =E31-F16+$C31 -> 0 | G31: =F31-G16+$C31 -> 0 | H31: 0
B32: NA, Net Assets | E32: =E31+E30 -> 0 | F32: =F31+F30 -> 120 | G32: =G31+G30 -> 120 | H32: =H31+H30 -> 0
B34: Line of credit D-S | C34: 0 | D34: of NFO | E34: =$C34*E30 -> 0 | F34: =$C34*F30 -> 0 | G34: =$C34*G30 -> 0 | H34: 0
B35: Loan D-L | C35: 3 | D35: years | E35: 0 | F35: =E35-($E35/$C35) -> 0 | G35: =F35-($E35/$C35) -> 0 | H35: 0
B36: D, Total Debt | E36: =E34+E35 -> 0 | F36: =F34+F35 -> 0 | G36: =G34+G35 -> 0 | H36: 0
B37: E, Equity | E37: =E31-E35 -> 0 | F37: =E37+F21-F22 -> 32 | G37: =F37+G21-G22 -> 64 | H37: 96
B38: Total financing | E38: =E36+E37 -> 0 | F38: =F36+F37 -> 32 | G38: 64 | H38: 96
D40: Cash on balance sheet (+ or -) | E40: =E38-E32 -> 0 | F40: =F38-F32 -> -88 | G40: =G38-G32 -> -56 | H40: =H38-H32 -> 96
D41: Annual increase in cash | F41: =F40-E40 -> -88 | G41: =G40-F40 -> 32 | H41: =H40-G40 -> 152
D42: ECF = Increase of cash + dividends paid | E42: =-E37 -> 0 | F42: =F41+F22 -> -88 | G42: =G41+G22 -> 32 | H42: 152
B44: CF for the shareholder Old Machine | E44: 0 | F44: 1 | G44: 2 | H44: 3
B45: Net Income | F45: =F21 -> 32 | G45: =G21 -> 32 | H45: =H21 -> 32
B46: Change in NA | E46: =-E32 -> 0 | F46: =E32-F32 -> -120 | G46: =F32-G32 -> 0 | H46: =G32-H32 -> 120
B47: Change in Debt | E47: =E36 -> 0 | F47: =F36-E36 -> 0 | G47: =G36-F36 -> 0 | H47: =H36-G36 -> 0 | I47: Sum of CF
B48: Equity CF or CF shareholder | E48: =SUM(E45:E47) -> 0 | F48: =SUM(F45:F47) -> -88 | G48: =SUM(G45:G47) -> 32 | H48: =SUM(H45:H47) -> 152 | I48: =SUM(E48:H48) -> 96
B49: IRR = | C49: =IRR(E48:H48) -> 0.5085926836
B51: FCF after tax | E51: 0 | F51: 1 | G51: 2 | H51: 3
B52: EBIT x (1-t) | F52: =F17*(1-$C20) -> 32 | G52: =G17*(1-$C20) -> 32 | H52: =H17*(1-$C20) -> 32
B53: Change in NA | E53: =E46 -> 0 | F53: =F46 -> -120 | G53: 0 | H53: 120
B54: FCF after tax | E54: =SUM(E52:E53) -> 0 | F54: =SUM(F52:F53) -> -88 | G54: =SUM(G52:G53) -> 32 | H54: =SUM(H52:H53) -> 152
B55: IRR = | C55: =IRR(E54:H54) -> 0.5085926836
B59: Risks. Sensitivity Analysis.
C61: Biggest Risk
B62: Scenarios | C62: Base | D62: Worst | E62: Best | F62: Range
B63: Price | C63: 10 | D63: 9 | E63: 11
B64: IRR shareholder | C64: 0.1 | D64: -0.05131943497 | E64: 0.2448103983 | F64: =E64-D64 -> 0.2961298333
B65: Cost of Machine FA | C65: 300 | D65: 330 | E65: 270
B66: IRR shareholder | C66: =C64 -> 0.1 | D66: 0.07900881485 | E66: 0.124559999 | F66: =E66-D66 -> 0.0455511841
B67: Size of NFO% | C67: 0.2 | D67: 0.25 | E67: 0.15
B68: IRR shareholder | C68: =C64 -> 0.1 | D68: 0.09438647416 | E68: 0.1063271923 | F68: =E68-D68 -> 0.01194071812
B69: Total Risk | C69: 0.1 | D69: -0.05875157854 | E69: 0.3002768656 | F69: =E69-D69 -> 0.3590284441
B72: IRR and Level of Debt
B73: Debt | C73: IRR | D73: Increase
B74: 60M€ or 20% of FA | C74: 0.128
B75: 120M€ or 40% of FA | C75: 0.149 | D75: =C75-C74 -> 0.021
B76: 180M€ or 60% of FA | C76: 0.183 | D76: =C76-C75 -> 0.034
B77: 240M€ or 80% of FA | C77: 0.251 | D77: 0.068
F79: FOR CASE 5
B81: CF shareholder or ECF | D81: 0 | E81: 1 | F81: 2 | G81: 3 | H81: IRR | I81: Sum of CF
A82: 1 | B82: New machine without debt (case1) | D82: -300 | E82: -28 | F82: 92 | G82: 332 | H82: 0.1000188925 | I82: 96
A83: 3 | B83: New machine with debt (case 3) | D83: -120 | E83: 0.8 | F83: 23.36 | G83: 169.76 | H83: 0.1826718657 | I83: 73.92
A84: 5 | B84: Old machine, with 0 debt (case 5) | D84: 0 | E84: -88 | F84: 32 | G84: 152 | H84: 0.5085926836 | I84: 96
A85: 5b | B85: Old machine, with debt (case 5) | D85: 0 | E85: 8 | F85: 28.16 | G85: 52.16 | H85: na | I85: 88.32

Sheet Exh 6&7
E1: Case 6. Cost reduction project. Buy or Rent? SOLVED
B2: Assumptions in green and bold
G3: Buy
B4: P&L | C4: Assumptions | F4: 1 | G4: 2 | H4: 3 | J4: Rent
B5: EBITDA | C5: 100 | F5: =$C5 -> 100 | G5: =$C5 -> 100 | H5: 100 | J5: =$C5 -> 100
B6: Depreciation or lease payment | C6: 5 | D6: years | F6: =E15/C6 -> 60 | G6: =F6 -> 60 | H6: =G6 -> 60 | J6: 85
B7: EBIT | F7: =F5-F6 -> 40 | G7: =G5-G6 -> 40 | H7: 40 | J7: =J5-J6 -> 15 | M7: Rent
B8: Interest Expense | C8: 0.05 | F8: =$C8*E20 -> 9 | G8: =$C8*F20 -> 10.8 | H8: 7.8 | J8: =$C8*F18 -> 4.8 | M8: -300
B9: Earnings before tax | F9: =F7-F8 -> 31 | G9: =G7-G8 -> 29.2 | H9: 32.2 | J9: =J7-J8 -> 10.2 | M9: 85
B10: Tax rate | C10: 0.2 | F10: =$C10*F9 -> 6.2 | G10: =$C10*G9 -> 5.84 | H10: 6.44 | J10: =J9*C10 -> 2.04 | M10: =M9 -> 85
B11: NI, Net Income | F11: =F9-F10 -> 24.8 | G11: =G9-G10 -> 23.36 | H11: 25.76 | J11: =J9-J10 -> 8.16 | M11: =M10 -> 85
M12: =M11 -> 85
B13: Balance sheet when buying | E13: 0 | F13: 1 | G13: 2 | H13: 3 | M13: =M12 -> 85
B14: NFO | F14: 120 | G14: =$F$14 -> 120 | H14: 0
B15: FA (machine) | E15: 300 | F15: =E15-$F6 -> 240 | G15: =F15-$F6 -> 180 | H15: 0 | M15: =IRR(M8:M13) -> 0.1285846353
B16: NA, Net assets | E16: =E14+E15 -> 300 | F16: =F14+F15 -> 360 | G16: 300 | H16: =H15+H14 -> 0
B18: Line of credit (D-Short term) | C18: 0.8 | F18: =$C18*F14 -> 96 | G18: =$C18*G14 -> 96 | H18: =$C18*H14 -> 0
B19: Loan (D-Long term) | C19: 3 | D19: years | E19: 180 | F19: =E19-($E19/$C19) -> 120 | G19: =F19-($E19/$C19) -> 60 | H19: 0
B20: D, Total Debt | E20: =E18+E19 -> 180 | F20: =F18+F19 -> 216 | G20: 156 | H20: 0
B21: E, Equity | E21: =E16-E20 -> 120 | F21: =E21+$F$11 -> 144.8 | G21: =F21+$F$11 -> 169.6 | H21: =G21+$F$11 -> 194.4
B22: Equity + Debt | E22: =E20+E21 -> 300 | F22: =F20+F21 -> 360.8 | G22: 325.6 | H22: 194.4
D23: Cash Surplus | E23: =E22-E16 -> 0 | F23: =F22-F16 -> 0.8 | G23: =G22-G16 -> 25.6 | H23: =H22-H16 -> 194.4
D24: Cash generated CF | E24: =-E21 -> -120 | F24: =F23-E23 -> 0.8 | G24: =G23-F23 -> 24.8 | H24: =H23-G23 -> 168.8
B26: CF shareholder when buying | E26: 0 | F26: 1 | G26: 2 | H26: 3
B27: Change in assets | E27: =-E16 -> -300 | F27: =E16-F16 -> -60 | G27: =F16-G16 -> 60 | H27: =G16-H16 -> 300
B28: Change in debt | E28: =E20 -> 180 | F28: =F20-E20 -> 36 | G28: =G20-F20 -> -60 | H28: -156
B29: Net Income | F29: =$F$11 -> 24.8 | G29: =$F$11 -> 24.8 | H29: =$F$11 -> 24.8 | J29: Sum of CF
B30: CF shareholder (Buy) | E30: =E27+E28+E29 -> -120 | F30: 0.8 | G30: 24.8 | H30: 168.8 | J30: =SUM(E30:H30) -> 74.4
B32: Required return (K) = | C32: 0.13 | E32: NPV = | F32: =NPV(C32,F30:H30)+E30 -> 17.11686974 | G32: IRR = | H32: =IRR(E30:H30) -> 0.1842279669
B34: CF shareholder when renting | E34: 0 | F34: 1 | G34: 2 | H34: 3
B35: Change in NFO | F35: =E14-F14 -> -120 | G35: =F14-G14 -> 0 | H35: 120
B36: Change in line of credit | F36: =F18-E18 -> 96 | G36: =G18-F18 -> 0 | H36: -96
B37: Net Income when renting | E37: 0 | F37: =$J$11 -> 8.16 | G37: =$J$11 -> 8.16 | H37: =$J$11 -> 8.16 | J37: Sum of CF
B38: CF shareholder (Rent) | E38: =E35+E36+E37 -> 0 | F38: -15.84 | G38: 8.16 | H38: 32.16 | J38: =SUM(E38:H38) -> 24.48
E40: NPV = | F40: =NPV(C32,F38:H38)+E38 -> 14.66127104 | G40: IRR = | H40: =IRR(E38:H38) -> 0.7055565244
E44: Case 7. Comparisons of Projects. SOLVED.
A46: Case | B46: CF shareholder or ECF | D46: 0 | E46: 1 | F46: 2 | G46: 3 | H46: IRR | J46: Sum of CF
A47: 1 | B47: New machine, no debt | D47: -300 | E47: -28 | F47: 92 | G47: 332 | H47: 0.1000188925 | J47: =SUM(D47:G47) -> 96
A48: 2 | B48: Risks Worst | D48: -330 | E48: -89.8 | F48: 45.2 | G48: 312.2 | H48: -0.05875157854 | J48: =SUM(D48:G48) -> -62.4
A49: 2 | B49: Risks Best | D49: -270 | E49: 39.8 | F49: 138.8 | G49: 345.8 | H49: 0.3002768656 | J49: =SUM(D49:G49) -> 254.4
A50: 3 | B50: New machine with debt | D50: -120 | E50: 0.8 | F50: 23.36 | G50: 169.76 | H50: 0.1826718657 | J50: =SUM(D50:G50) -> 73.92
A51: 3b | B51: New machine with debt, Worst case | D51: -150 | E51: -49 | F51: -23.92 | G51: 137.48 | H51: -0.1745913865 | J51: -85.44
A52: 3c | B52: New machine with debt, Best case | D52: -90 | E52: 51.8 | F52: 70.832 | G52: 201.032 | H52: 0.7522264968 | J52: 233.664
A53: 4 | B53: New machine with inflation, no debt | D53: -300 | E53: -28 | F53: 88 | G53: 360.8 | H53: 0.122493435 | J53: 120.8
A54: 4b | B54: New machine with inflation and debt | D54: -120 | E54: 0.8 | F54: 28.96 | G54: 188.576 | H54: 0.2340795223 | J54: 98.336
A55: 5 | B55: Old machine, with 0 debt | D55: 0 | E55: -88 | F55: 32 | G55: 152 | H55: 0.5085926836 | J55: 96
A56: 5b | B56: Old machine, with debt | D56: 0 | E56: 8 | F56: 28.16 | G56: 52.16 | H56: na | J56: 88.32
A57: 6 | B57: Renting vs Buy | D57: 0 | E57: -15.84 | F57: 8.16 | G57: 32.16 | H57: 0.71 | J57: =SUM(D57:G57) -> 24.48

Sheet Casos 1-5 FAZER (hidden)
E1: TEMPLATE PARA SOLUCIONAR OS CASOS 1 A 5
B2: Premissas em negrito e verde. Para realizar os cálculos, veja as notas dentro das células.
B4: Premissas da Demonstração de Resultados (DRE) | C4: Premissas | F4: 1 | G4: 2 | H4: 3
B5: Peças produzidas | C5: 60000 | F5: =C5 -> 60000 | G5: =F5 -> 60000 | H5: =G5 -> 60000
B6: Preço unitário de venda em euros | C6: 10 | F6: =C6 -> 10 | G6: =F6*(1+$C$8) -> 10 | H6: =G6*(1+$C$8) -> 10
B7: Custo unitário em euros | C7: 8 | F7: =C7 -> 8 | G7: =F7*(1+$C$8) -> 8 | H7: =G7*(1+$C$8) -> 8
B8: Inflação esperada | C8: 0
B10: DRE (€ ’000) | F10: 1 | G10: 2 | H10: 3
B11: Vendas
B12: Custo de Mercadorias Vendidas (CMV)
B13: Margem Bruta
B14: Despesas Operacionais (Opex) | C14: 20 | F14: =C14 -> 20 | G14: =F14*(1+$C8) -> 20 | H14: =G14*(1+$C8) -> 20
B15: EBITDA
B16: Depreciação | C16: 5 | D16: anos
B17: EBIT | F17: =F15-F16 -> 0 | G17: =G15-G16 -> 0 | H17: =H15-H16 -> 0
B18: Despesa de juros | C18: 0.05
B19: Lucro antes de impostos | F19: =F17-F18 -> 0 | G19: =G17-G18 -> 0 | H19: =H17-H18 -> 0
B20: Impostos | C20: 0.2 | F20: =F19*$C$20 -> 0 | G20: =G19*$C$20 -> 0 | H20: =H19*$C$20 -> 0
B21: Lucro Líquido | F21: =F19-F20 -> 0 | G21: =G19-G20 -> 0 | H21: =H19-H20 -> 0
B22: Dividendos pagos | C22: 0 | F22: =$C22*F21 -> 0 | G22: =$C22*G21 -> 0 | H22: 0
I23: Média
B24: EBITDA / Investimento inicial | F24: =F15/$E$31 -> 0 | G24: =G15/$E$31 -> 0 | H24: =H15/$E$31 -> 0 | I24: =AVERAGE(F24:H24) -> 0
B25: RONA (EBIT / AL) | F25: =F17/E32 -> 0 | G25: =G17/F32 ->  | H25: =H17/G32 ->  | I25: =AVERAGE(F25:H25) -> 
B26: ROA (Lucro Líquido / AL) | F26: =F21/E32 -> 0 | G26: =G21/F32 ->  | I26: =AVERAGE(F26:H26) -> 
B27: ROE (Lucro Líquido / Patrimônio) | F27: =F21/E37 ->  | G27: =G21/F37 ->  | H27: =H21/G37 ->  | I27: =AVERAGE(F27:H27) -> 
B29: Balanço Resumido (Curto) | E29: 0 | F29: 1 | G29: 2 | H29: 3 | K29: Premissas para NOF
B30: NOF (20% Vendas) | C30: 0.2 | D30: x Vendas | F30: =$C$30*F11 -> 0 | G30: =$C$30*G11 -> 0 | H30: 0 | K30: Contas a Receber | L30: 90 | N30: NOF como % das Vendas
B31: AF, Líquido | C31: 0 | D31: Capex | E31: 300 | K31: Estoques | L31: 10 | N31: =(L30+L31*0.85-L32*0.85)/365 -> 0.2
B32: AL, Ativo Líquido | E32: =E31+E30 -> 300 | F32: =F31+F30 -> 0 | G32: =G31+G30 -> 0 | H32: =H31+H30 -> 0 | K32: Contas a Pagar | L32: 30
B34: Linha de crédito D-S | C34: 0 | D34: do NOF | E34: =$C34*E30 -> 0 | F34: =$C34*F30 -> 0 | G34: =$C34*G30 -> 0 | H34: 0
B35: Empréstimo D-L | C35: 3 | D35: anos | E35: 0 | F35: =E35-($E35/$C35) -> 0 | G35: =F35-($E35/$C35) -> 0 | H35: 0
B36: D, Dívida Total | E36: =E34+E35 -> 0 | F36: =F34+F35 -> 0 | G36: =G34+G35 -> 0 | H36: 0
B37: E, Patrimônio Líq.
B38: Financiamento Total | E38: =E36+E37 -> 0 | F38: =F36+F37 -> 0 | G38: 0 | H38: 0
D40: Caixa no Balanço (+ ou -)
D41: Aumento anual do Caixa
D42: ECF = Aumento no Caixa + Diviendos Pagos
B44: FC para o acionista ou ECF | E44: 0 | F44: 1 | G44: 2 | H44: 3
B45: Lucro Líquido
B46: Variação no AL
B47: Variação na Dívida | I47: Soma dos FCs
B48: Equity CFou FC acionista | E48: =SUM(E45:E47) -> 0 | F48: =SUM(F45:F47) -> 0 | G48: =SUM(G45:G47) -> 0 | H48: =SUM(H45:H47) -> 0 | I48: =SUM(E48:H48) -> 0
B49: TIR = | C49: =IRR(E48:H48) -> 
B51: FCF após impostos | E51: 0 | F51: 1 | G51: 2 | H51: 3
B52: EBIT x (1-t)
B53: Variação no AL
B54: FCF após impostos | E54: =SUM(E52:E53) -> 0 | F54: =SUM(F52:F53) -> 0 | G54: =SUM(G52:G53) -> 0 | H54: =SUM(H52:H53) -> 0
B55: TIR = | C55: =IRR(E54:H54) -> 
B59: Riscos. Análise de Sensibilidade. | G59: PARA O CASO 2
D61: Maiores riscos
B62: Cenários | C62: Base | D62: Pior | E62: Melhor | F62: Intervalo
B63: Preço | C63: 10 | D63: 9 | E63: 11
B64: TIR acionista
B65: Custo da Máquina FA | C65: 300 | D65: 330 | E65: 270
B66: TIR acionista
B67: Tamanho do NOF% | C67: 0.2 | D67: 0.25 | E67: 0.15
B68: TIR acionista | F68: =E68-D68 -> 0
B69: Risco Total | F69: =E69-D69 -> 0
B72: TIR e Nível de Dívida | G72: PARA O CASO 3
B73: Dívida | C73: TIR | D73: Aumento
B74: € 60M ou 20% do AF
B75: € 120M€ ou 40% do AF
B76: € 180M€ ou 60% do AF
B77: € 240M ou 80% do AF
G79: PARA O CASO 5
B81: CF acionista ou ECF | D81: 0 | E81: 1 | F81: 2 | G81: 3 | H81: TIR | I81: Soma FCs
B82: Máquina nova sem dívida (caso 1) | D82: -300 | E82: -28 | F82: 92 | G82: 332 | H82: =IRR(D82:G82) -> 0.1000188925 | I82: =SUM(D82:G82) -> 96
B83: Máquina nova com dívida (caso 3) | D83: -120 | E83: 0.8 | F83: 23.36 | G83: 169.76 | H83: 0.1826718657 | I83: 73.92
B84: Máquina antiga (caso 5) | D84: 0 | E84: -88 | F84: 32 | G84: 152 | H84: =IRR(D84:G84) -> 0.5085926836 | I84: =SUM(D84:G84) -> 96

Sheet Caso 6 FAZER (hidden)
E1: Caso 6. Projeto de redução de custos. Comprar ou alugar? FAZER
B2: Premissas em negrito verde
G3: Comprar
B4: DRE | C4: Premissas | F4: 1 | G4: 2 | H4: 3 | J4: Alugar
B5: EBITDA | C5: 100 | F5: =$C5 -> 100 | G5: =$C5 -> 100 | H5: 100 | J5: =$C5 -> 100
B6: Depreciação ou pgto aluguel | C6: 5 | D6: anos | J6: 85
B7: EBIT | F7: =F5-F6 -> 100 | G7: =G5-G6 -> 100 | H7: 100 | J7: =J5-J6 -> 15 | M7: Alugar
B8: Despesa com juros | C8: 0.05 | M8: -300
B9: Lucro antes de impostos | M9: 85
B10: Imposto | C10: 0.2 | M10: =M9 -> 85
B11: LL, Lucro líquido | M11: =M10 -> 85
M12: =M11 -> 85
B13: Balanço patrimonial ao comprar | E13: 0 | F13: 1 | G13: 2 | H13: 3 | M13: =M12 -> 85
B14: NOF | F14: 120 | H14: 0
B15: AF (máquina) | E15: 300 | H15: 0 | M15: =IRR(M8:M13) -> 0.1285846353
B16: AL, Ativos líquidos
B18: Linha de crédito (D-curto prazo) | C18: 0.8
B19: Empréstimo (D-longo prazo) | C19: 3 | D19: anos | E19: 180
B20: D, Dívida total
B21: E, Patrimônio líquido
B22: Patrimônio líquido + Dívida
D23: Caixa Excedente
D24: Caixa Gerado, FC
B26: CF acionista ao comprar | E26: 0 | F26: 1 | G26: 2 | H26: 3
B27: Variação nos ativos | E27: =-E16 -> 0 | F27: =E16-F16 -> 0 | G27: =F16-G16 -> 0 | H27: =G16-H16 -> 0
B28: Variação na dívida | E28: =E20 -> 0 | F28: =F20-E20 -> 0 | G28: =G20-F20 -> 0 | H28: 0
B29: Lucro líquido | F29: =$F$11 -> 0 | G29: =$F$11 -> 0 | H29: =$F$11 -> 0 | J29: Soma FCs
B30: CF acionista (Compra) | E30: =E27+E28+E29 -> 0 | F30: 0 | G30: 0 | H30: 0 | J30: =SUM(E30:H30) -> 0
B32: Retorno exigido (K) = | C32: 0.13 | E32: VPL = | F32: =NPV(C32,F30:H30)+E30 -> 0 | G32: TIR = | H32: =IRR(E30:H30) -> 
B34: CF acionista ao alugar | E34: 0 | F34: 1 | G34: 2 | H34: 3
B35: Variação em NOF
B36: Variação na linha de crédito
B37: Lucro líquido ao alugar | J37: Soma FCs
B38: CF acionista (Aluguel) | J38: =SUM(E38:H38) -> 0
E40: VPL = | F40: =NPV(C32,F38:H38)+E38 -> 0 | G40: TIR = | H40: =IRR(E38:H38) -> 
E44: Caso 7. Comparação entre projetos. RESOLVIDO.
A46: Caso | B46: CF acionista ou FC acionista | D46: 0 | E46: 1 | F46: 2 | G46: 3 | H46: TIR | J46: Soma FCs
A47: 1 | B47: Máquina nova, sem dívida | D47: -300 | E47: -28 | F47: 92 | G47: 332 | H47: 0.1000188925 | J47: =SUM(D47:G47) -> 96
A48: 2 | B48: Riscos Pior cenário | D48: -330 | E48: -89.8 | F48: 45.2 | G48: 312.2 | H48: -0.05875157854 | J48: =SUM(D48:G48) -> -62.4
A49: 2 | B49: Riscos Melhor cenário | D49: -270 | E49: 39.8 | F49: 138.8 | G49: 345.8 | H49: 0.3002768656 | J49: =SUM(D49:G49) -> 254.4
A50: 3 | B50: Máquina nova com dívida | D50: -120 | E50: 0.8 | F50: 23.36 | G50: 169.76 | H50: 0.1826718657 | J50: =SUM(D50:G50) -> 73.92
A51: 3b | B51: Máquina nova com dívida, Pior cenário | D51: -150 | E51: -49 | F51: -23.92 | G51: 137.48 | H51: -0.1745913865 | J51: -85.44
A52: 3c | B52: Máquina nova com dívida, Melhor cenário | D52: -90 | E52: 51.8 | F52: 70.832 | G52: 201.032 | H52: 0.7522264968 | J52: 233.664
A53: 4 | B53: Máquina nova com inflação, sem dívida | D53: -300 | E53: -28 | F53: 88 | G53: 360.8 | H53: 0.122493435 | J53: 120.8
A54: 4b | B54: Máquina nova com inflação e dívida | D54: -120 | E54: 0.8 | F54: 28.96 | G54: 188.576 | H54: 0.2340795223 | J54: 98.336
A55: 5 | B55: Máquina antiga, sem dívida | D55: 0 | E55: -88 | F55: 32 | G55: 152 | H55: 0.5085926836 | J55: 96
A56: 5b | B56: Máquina antiga, com dívida | D56: 0 | E56: 8 | F56: 28.16 | G56: 52.16 | H56: na | J56: 88.32
A57: 6 | B57: Aluguel vs Compra | D57: 0 | E57: -15.84 | F57: 8.16 | G57: 32.16 | H57: 0.71 | J57: 24.48

Sheet Anexos 1&2 (hidden)
E1: Casos 1&2. Retorno e risco do projeto. RESOLVIDO
B2: Premissas em negrito verde. Para fazer os cálculos, veja as notas dentro das células.
B4: Premissas do DRE | C4: Premissas | F4: 1 | G4: 2 | H4: 3
B5: Peças produzidas | C5: 60000 | F5: =C5 -> 60000 | G5: =F5 -> 60000 | H5: =G5 -> 60000
B6: Preço unitário de venda em euros | C6: 10 | F6: =C6 -> 10 | G6: =F6*(1+$C$8) -> 10 | H6: =G6*(1+$C$8) -> 10
B7: Custo unitário em euros | C7: 8 | F7: =C7 -> 8 | G7: =F7*(1+$C$8) -> 8 | H7: =G7*(1+$C$8) -> 8
B8: Inflação esperada | C8: 0
B10: DRE (€ ’000) | F10: 1 | G10: 2 | H10: 3
B11: Vendas | F11: =F5*F6/1000 -> 600 | G11: =G5*G6/1000 -> 600 | H11: =H5*H6/1000 -> 600
B12: Custo de Mercadorias Vendidas (CMV) | F12: =F7*F5/1000 -> 480 | G12: =G7*G5/1000 -> 480 | H12: =H7*H5/1000 -> 480
B13: Margem Bruta | F13: =F11-F12 -> 120 | G13: =G11-G12 -> 120 | H13: =H11-H12 -> 120
B14: Despesas Operacionais (Opex) | C14: 20 | F14: =C14 -> 20 | G14: =F14*(1+$C8) -> 20 | H14: =G14*(1+$C8) -> 20
B15: EBITDA | F15: =F13-F14 -> 100 | G15: =G13-G14 -> 100 | H15: =H13-H14 -> 100
B16: Depreciação | C16: 5 | D16: Ano | F16: =$E31*(1/$C$16) -> 60 | G16: =$E31*(1/$C$16) -> 60 | H16: =$E31*(1/$C$16) -> 60
B17: EBIT | F17: =F15-F16 -> 40 | G17: =G15-G16 -> 40 | H17: =H15-H16 -> 40
B18: Despesa de juros | C18: 0.05 | F18: =E36*$C$18 -> 0 | G18: =F36*$C$18 -> 0 | H18: =G36*$C$18 -> 0
B19: Lucro antes de impostos | F19: =F17-F18 -> 40 | G19: =G17-G18 -> 40 | H19: =H17-H18 -> 40
B20: Impostos | C20: 0.2 | F20: =F19*$C$20 -> 8 | G20: =G19*$C$20 -> 8 | H20: =H19*$C$20 -> 8
B21: Lucro Líquido | F21: =F19-F20 -> 32 | G21: =G19-G20 -> 32 | H21: =H19-H20 -> 32
B22: Dividendos pagos | C22: 0 | F22: =$C22*F21 -> 0 | G22: =$C22*G21 -> 0 | H22: 0
I23: Average
B24: EBITDA / Investimento inicial | F24: =F15/$E$31 -> 0.3333333333 | G24: =G15/$E$31 -> 0.3333333333 | H24: =H15/$E$31 -> 0.3333333333 | I24: =AVERAGE(F24:H24) -> 0.3333333333
B25: RONA (EBIT / AL) | F25: =F17/E32 -> 0.1333333333 | G25: =G17/F32 -> 0.1111111111 | H25: =H17/G32 -> 0.1333333333 | I25: =AVERAGE(F25:H25) -> 0.1259259259
B26: ROA (LL / AL) | F26: =F21/E32 -> 0.1066666667 | G26: =G21/F32 -> 0.08888888889 | H26: 0.1066666667 | I26: =AVERAGE(F26:H26) -> 0.1007407407
B27: ROE (LL / PL) | F27: =F21/E37 -> 0.1066666667 | G27: =G21/F37 -> 0.09638554217 | H27: =H21/G37 -> 0.08791208791 | I27: =AVERAGE(F27:H27) -> 0.09698809892
B29: Balanço Curto ou Resumido | E29: 0 | F29: 1 | G29: 2 | H29: 3 | K29: Premissas NOF
B30: NOF (20% Vendas) | C30: 0.2 | D30: x vendas | F30: =$C$30*F11 -> 120 | G30: =$C$30*G11 -> 120 | H30: 0 | K30: Contas a Receber | L30: 90 | N30: NFO em % vendas
B31: AF, Líquido | C31: 0 | D31: Capex | E31: 300 | F31: =E31-F16+$C31 -> 240 | G31: =F31-G16+$C31 -> 180 | H31: 0 | K31: Estoques | L31: 10 | N31: =(L30+L31*0.85-L32*0.85)/365 -> 0.2
B32: AL, Ativos Líquidos | E32: =E31+E30 -> 300 | F32: =F31+F30 -> 360 | G32: =G31+G30 -> 300 | H32: =H31+H30 -> 0 | K32: Contas a Pagar | L32: 30
B34: Linha de crédito D-S | C34: 0 | D34: do NOF | E34: =$C34*E30 -> 0 | F34: =$C34*F30 -> 0 | G34: =$C34*G30 -> 0 | H34: 0
B35: Empréstimo D-L | C35: 3 | D35: anos | E35: 0 | F35: =E35-($E35/$C35) -> 0 | G35: =F35-($E35/$C35) -> 0 | H35: 0
B36: D, Dívida Total | E36: =E34+E35 -> 0 | F36: =F34+F35 -> 0 | G36: =G34+G35 -> 0 | H36: 0
B37: E, Patrimônio Líq. (Equity) | E37: =E31-E35 -> 300 | F37: =E37+F21-F22 -> 332 | G37: =F37+G21-G22 -> 364 | H37: 396
B38: Financiamento Total | E38: =E36+E37 -> 300 | F38: =F36+F37 -> 332 | G38: 364 | H38: 396
D40: Caixa no Balanço (+ ou -) | E40: =E38-E32 -> 0 | F40: =F38-F32 -> -28 | G40: =G38-G32 -> 64 | H40: =H38-H32 -> 396
D41: Aumento anual do Caixa | F41: =F40-E40 -> -28 | G41: =G40-F40 -> 92 | H41: =H40-G40 -> 332
D42: ECF = Aumento no Caixa + Diviendos Pagos | E42: =-E37 -> -300 | F42: =F41+F22 -> -28 | G42: =G41+G22 -> 92 | H42: 332
B44: FC para o acionista ou ECF | E44: 0 | F44: 1 | G44: 2 | H44: 3
B45: Lucro Líquido | F45: =F21 -> 32 | G45: =G21 -> 32 | H45: =H21 -> 32
B46: Variação no AL | E46: =-E32 -> -300 | F46: =E32-F32 -> -60 | G46: =F32-G32 -> 60 | H46: =G32-H32 -> 300
B47: Variação na Dívida | E47: =E36 -> 0 | F47: =F36-E36 -> 0 | G47: =G36-F36 -> 0 | H47: =H36-G36 -> 0 | I47: Soma FC
B48: Equity CF ou FC acionista | E48: =SUM(E45:E47) -> -300 | F48: =SUM(F45:F47) -> -28 | G48: =SUM(G45:G47) -> 92 | H48: =SUM(H45:H47) -> 332 | I48: =SUM(E48:H48) -> 96
B49: TIR = | C49: =IRR(E48:H48) -> 0.1000188925
B51: FCF após impostos | E51: 0 | F51: 1 | G51: 2 | H51: 3
B52: EBIT x (1-t) | F52: =F17*(1-$C20) -> 32 | G52: =G17*(1-$C20) -> 32 | H52: =H17*(1-$C20) -> 32
B53: Variação no AL | E53: =E46 -> -300 | F53: =F46 -> -60 | G53: 60 | H53: 300
B54: FCF após impostos | E54: =SUM(E52:E53) -> -300 | F54: =SUM(F52:F53) -> -28 | G54: =SUM(G52:G53) -> 92 | H54: =SUM(H52:H53) -> 332
B55: TIR = | C55: =IRR(E54:H54) -> 0.1000188925
B59: Riscos. Análise de Sensibilidade. | G59: FOR CASE 2
D61: Maiores riscos
B62: Cenários | C62: Base | D62: Pior | E62: Melhor | F62: Intervalo
B63: Preço | C63: 10 | D63: 9 | E63: 11
B64: TIR acionista | C64: 0.1 | D64: -0.05131943497 | E64: 0.2448103983 | F64: =E64-D64 -> 0.2961298333
B65: Custo da Máquina FA | C65: 300 | D65: 330 | E65: 270
B66: TIR acionista | C66: =C64 -> 0.1 | D66: 0.07900881485 | E66: 0.124559999 | F66: =E66-D66 -> 0.0455511841
B67: Tamanho do NOF% | C67: 0.2 | D67: 0.25 | E67: 0.15
B68: TIR acionista | C68: =C64 -> 0.1 | D68: 0.09438647416 | E68: 0.1063271923 | F68: =E68-D68 -> 0.01194071812
B69: Risco Total | C69: 0.1 | D69: -0.05875157854 | E69: 0.3002768656 | F69: =E69-D69 -> 0.3590284441
B72: TIR e Nível de Dívida | G72: FOR CASE 3
B73: Dívida | C73: TIR | D73: Aumento
B74: € 60M ou 20% do AF | C74: 0.128
B75: € 120M ou 40% do AF | C75: 0.149 | D75: =C75-C74 -> 0.021
B76: € 180M ou 60% do AF | C76: 0.183 | D76: =C76-C75 -> 0.034
B77: € 240M ou 80% do AF | C77: 0.251 | D77: 0.068
G79: FOR CASE 5
B81: CF acionista ou ECF | D81: 0 | E81: 1 | F81: 2 | G81: 3 | H81: TIR | I81: Soma FCs
B82: Máquina nova sem dívida (caso 1) | D82: -300 | E82: -28 | F82: 92 | G82: 332 | H82: =IRR(D82:G82) -> 0.1000188925 | I82: =SUM(D82:G82) -> 96
B83: Máquina nova com dívida (caso 3) | D83: -120 | E83: 0.8 | F83: 23.36 | G83: 169.76 | H83: 0.1826718657 | I83: 73.92
B84: Máquina antiga (caso 5) | D84: 0 | E84: -88 | F84: 32 | G84: 152 | H84: =IRR(D84:G84) -> 0.5085926836 | I84: =SUM(D84:G84) -> 96

Sheet Anexo 3 (hidden)
E1: Caso 3. Projeto financiado com dívida. RESOLVIDO
B2: Premissas em negrito verde. Para fazer os cálculos, veja as notas dentro das células.
K3: Premissas NOF
B4: Premissas do DRE | C4: Premissas | F4: 1 | G4: 2 | H4: 3 | K4: Contas a Receber | L4: 90 | N4: NFO em % vendas
B5: Peças produzidas | C5: 60000 | F5: =C5 -> 60000 | G5: =F5 -> 60000 | H5: =G5 -> 60000 | K5: Estoques | L5: 10 | N5: =(L4+L5*0.85-L6*0.85)/365 -> 0.2
B6: Preço unitário de venda em euros | C6: 10 | F6: =C6 -> 10 | G6: =F6*(1+$C$8) -> 10 | H6: =G6*(1+$C$8) -> 10 | K6: Contas a Pagar | L6: 30
B7: Custo unitário em euros | C7: 8 | F7: =C7 -> 8 | G7: =F7*(1+$C$8) -> 8 | H7: =G7*(1+$C$8) -> 8
B8: Inflação esperada | C8: 0
B10: DRE (€ ’000) | F10: 1 | G10: 2 | H10: 3
B11: Vendas | F11: =F5*F6/1000 -> 600 | G11: =G5*G6/1000 -> 600 | H11: =H5*H6/1000 -> 600
B12: Custo de Mercadorias Vendidas (CMV) | F12: =F7*F5/1000 -> 480 | G12: =G7*G5/1000 -> 480 | H12: =H7*H5/1000 -> 480
B13: Margem Bruta | F13: =F11-F12 -> 120 | G13: =G11-G12 -> 120 | H13: =H11-H12 -> 120
B14: Despesas Operacionais (Opex) | C14: 20 | F14: =C14 -> 20 | G14: =F14*(1+$C8) -> 20 | H14: =G14*(1+$C8) -> 20
B15: EBITDA | F15: =F13-F14 -> 100 | G15: =G13-G14 -> 100 | H15: =H13-H14 -> 100
B16: Depreciação | C16: 5 | D16: Ano | F16: =$E31*(1/$C$16) -> 60 | G16: =$E31*(1/$C$16) -> 60 | H16: =$E31*(1/$C$16) -> 60
B17: EBIT | F17: =F15-F16 -> 40 | G17: =G15-G16 -> 40 | H17: =H15-H16 -> 40
B18: Despesa de juros | C18: 0.05 | F18: =E36*$C$18 -> 9 | G18: =F36*$C$18 -> 10.8 | H18: =G36*$C$18 -> 7.8
B19: Lucro antes de impostos | F19: =F17-F18 -> 31 | G19: =G17-G18 -> 29.2 | H19: =H17-H18 -> 32.2
B20: Impostos | C20: 0.2 | F20: =F19*$C$20 -> 6.2 | G20: =G19*$C$20 -> 5.84 | H20: =H19*$C$20 -> 6.44
B21: Lucro Líquido | F21: =F19-F20 -> 24.8 | G21: =G19-G20 -> 23.36 | H21: =H19-H20 -> 25.76
B22: Dividendos pagos | C22: 0 | F22: =$C22*F21 -> 0 | G22: =$C22*G21 -> 0 | H22: 0
I23: Média
B24: EBITDA / Investimento inicial | F24: =F15/$E$31 -> 0.3333333333 | G24: =G15/$E$31 -> 0.3333333333 | H24: =H15/$E$31 -> 0.3333333333 | I24: =AVERAGE(F24:H24) -> 0.3333333333
B25: RONA (EBIT / AL) | F25: =F17/E32 -> 0.1333333333 | G25: =G17/F32 -> 0.1111111111 | H25: =H17/G32 -> 0.1333333333 | I25: =AVERAGE(F25:H25) -> 0.1259259259
B26: ROA (LL / AL) | F26: =F21/E32 -> 0.08266666667 | G26: =G21/F32 -> 0.06488888889 | H26: 0.08586666667 | I26: =AVERAGE(F26:H26) -> 0.07780740741
B27: ROE (LL / PL) | F27: =F21/E37 -> 0.2066666667 | G27: =G21/F37 -> 0.1613259669 | H27: =H21/G37 -> 0.1531874405 | I27: =AVERAGE(F27:H27) -> 0.1737266914
B29: Balanço Curto ou Resumido | E29: 0 | F29: 1 | G29: 2 | H29: 3
B30: NOF (20% Vendas) | C30: 0.2 | D30: x vendas | F30: =$C$30*F11 -> 120 | G30: =$C$30*G11 -> 120 | H30: 0
B31: AF, Líquido | C31: 0 | D31: Capex | E31: 300 | F31: =E31-F16+$C31 -> 240 | G31: =F31-G16+$C31 -> 180 | H31: 0
B32: AL, Ativos Líquidos | E32: =E31+E30 -> 300 | F32: =F31+F30 -> 360 | G32: =G31+G30 -> 300 | H32: =H31+H30 -> 0
B34: Linha de crédito D-S | C34: 0.8 | D34: do NOF | E34: =$C34*E30 -> 0 | F34: =$C34*F30 -> 96 | G34: =$C34*G30 -> 96 | H34: 0
B35: Empréstimo D-L | C35: 3 | D35: anos | E35: 180 | F35: =E35-($E35/$C35) -> 120 | G35: =F35-($E35/$C35) -> 60 | H35: 0
B36: D, Dívida Total | E36: =E34+E35 -> 180 | F36: =F34+F35 -> 216 | G36: =G34+G35 -> 156 | H36: 0
B37: E, Patrimônio Líq. (Equity) | E37: =E31-E35 -> 120 | F37: =E37+F21-F22 -> 144.8 | G37: =F37+G21-G22 -> 168.16 | H37: 193.92
B38: Financiamento Total | E38: =E36+E37 -> 300 | F38: =F36+F37 -> 360.8 | G38: 324.16 | H38: 193.92
D40: Caixa no Balanço (+ ou -) | E40: =E38-E32 -> 0 | F40: =F38-F32 -> 0.8 | G40: =G38-G32 -> 24.16 | H40: =H38-H32 -> 193.92
D41: Aumento anual do Caixa | F41: =F40-E40 -> 0.8 | G41: =G40-F40 -> 23.36 | H41: =H40-G40 -> 169.76
D42: ECF = Aumento no Caixa + Diviendos Pagos | E42: =-E37 -> -120 | F42: =F41+F22 -> 0.8 | G42: =G41+G22 -> 23.36 | H42: 169.76
B44: FC para o acionista ou ECF | E44: 0 | F44: 1 | G44: 2 | H44: 3
B45: Lucro Líquido | F45: =F21 -> 24.8 | G45: =G21 -> 23.36 | H45: =H21 -> 25.76
B46: Variação no AL | E46: =-E32 -> -300 | F46: =E32-F32 -> -60 | G46: =F32-G32 -> 60 | H46: =G32-H32 -> 300
B47: Variação na Dívida | E47: =E36 -> 180 | F47: =F36-E36 -> 36 | G47: =G36-F36 -> -60 | H47: =H36-G36 -> -156 | I47: Soma FCs
B48: Equity CFou FC acionista | E48: =SUM(E45:E47) -> -120 | F48: =SUM(F45:F47) -> 0.8 | G48: =SUM(G45:G47) -> 23.36 | H48: =SUM(H45:H47) -> 169.76 | I48: =SUM(E48:H48) -> 73.92
B49: TIR = | C49: =IRR(E48:H48) -> 0.1826718657
B51: FCF após impostos | E51: 0 | F51: 1 | G51: 2 | H51: 3
B52: EBIT x (1-t) | F52: =F17*(1-$C20) -> 32 | G52: =G17*(1-$C20) -> 32 | H52: =H17*(1-$C20) -> 32
B53: Variação no AL | E53: =E46 -> -300 | F53: =F46 -> -60 | G53: 60 | H53: 300
B54: FCF após impostos | E54: =SUM(E52:E53) -> -300 | F54: =SUM(F52:F53) -> -28 | G54: =SUM(G52:G53) -> 92 | H54: =SUM(H52:H53) -> 332
B55: TIR = | C55: =IRR(E54:H54) -> 0.1000188925
B59: Riscos. Análise de Sensibilidade.
D61: Maiores riscos
B62: Cenários | C62: Base | D62: Pior | E62: Melhor | F62: Intervalo
B63: Preço | C63: 10 | D63: 9 | E63: 11
B64: TIR acionista | C64: 0.1 | D64: -0.05131943497 | E64: 0.2448103983 | F64: =E64-D64 -> 0.2961298333
B65: Custo da Máquina FA | C65: 300 | D65: 330 | E65: 270
B66: TIR acionista | C66: =C64 -> 0.1 | D66: 0.07900881485 | E66: 0.124559999 | F66: =E66-D66 -> 0.0455511841
B67: Tamanho NOF% | C67: 0.2 | D67: 0.25 | E67: 0.15
B68: TIR acionista | C68: =C64 -> 0.1 | D68: 0.09438647416 | E68: 0.1063271923 | F68: =E68-D68 -> 0.01194071812
B69: Risco Total | C69: 0.1 | D69: -0.05875157854 | E69: 0.3002768656 | F69: =E69-D69 -> 0.3590284441
B72: TIR e Nível de Dívida
B73: Dívida | C73: TIR | D73: Aumento
B74: € 60M ou 20% do AF | C74: 0.128
B75: € 120M ou 40% do AF | C75: 0.149 | D75: =C75-C74 -> 0.021
B76: € 180M ou 60% do AF | C76: 0.183 | D76: =C76-C75 -> 0.034
B77: € 240M ou 80% do AF | C77: 0.251 | D77: 0.068

Sheet Anexo 4 (hidden)
E1: Caso 4. Projeto com inflação. RESOLVIDO
B2: Premissas em negrito verde. Para fazer os cálculos, veja as notas dentro das células.
K3: Premissas NOF
B4: Premissas do DRE | C4: Premissas | F4: 1 | G4: 2 | H4: 3 | K4: Contas a Receber | L4: 90 | N4: NOF como % Vendas
B5: Peças produzidas | C5: 60000 | F5: =C5 -> 60000 | G5: =F5 -> 60000 | H5: =G5 -> 60000 | K5: Estoques | L5: 10 | N5: =(L4+L5*0.85-L6*0.85)/365 -> 0.2
B6: Preço unitário de venda em euros | C6: 10 | F6: =C6 -> 10 | G6: =F6*(1+$C$8) -> 11 | H6: =G6*(1+$C$8) -> 12.1 | K6: Contas a Pagar | L6: 30
B7: Custo unitário em euros | C7: 8 | F7: =C7 -> 8 | G7: =F7*(1+$C$8) -> 8.8 | H7: =G7*(1+$C$8) -> 9.68
B8: Inflação esperada | C8: 0.1
B10: DRE (€ ’000) | F10: 1 | G10: 2 | H10: 3
B11: Vendas | F11: =F5*F6/1000 -> 600 | G11: =G5*G6/1000 -> 660 | H11: =H5*H6/1000 -> 726
B12: Custo de Mercadorias Vendidas (CMV) | F12: =F7*F5/1000 -> 480 | G12: =G7*G5/1000 -> 528 | H12: =H7*H5/1000 -> 580.8
B13: Margem Bruta | F13: =F11-F12 -> 120 | G13: =G11-G12 -> 132 | H13: =H11-H12 -> 145.2
B14: Despesas Operacionais (Opex) | C14: 20 | F14: =C14 -> 20 | G14: =F14*(1+$C8) -> 22 | H14: =G14*(1+$C8) -> 24.2
B15: EBITDA | F15: =F13-F14 -> 100 | G15: =G13-G14 -> 110 | H15: =H13-H14 -> 121
B16: Depreciação | C16: 5 | D16: anos | F16: =$E31*(1/$C$16) -> 60 | G16: =$E31*(1/$C$16) -> 60 | H16: =$E31*(1/$C$16) -> 60
B17: EBIT | F17: =F15-F16 -> 40 | G17: =G15-G16 -> 50 | H17: =H15-H16 -> 61
B18: Despesa de juros | C18: 0.05 | F18: =E36*$C$18 -> 0 | G18: =F36*$C$18 -> 0 | H18: =G36*$C$18 -> 0
B19: Lucro antes de impostos | F19: =F17-F18 -> 40 | G19: =G17-G18 -> 50 | H19: =H17-H18 -> 61
B20: Impostos | C20: 0.2 | F20: =F19*$C$20 -> 8 | G20: =G19*$C$20 -> 10 | H20: =H19*$C$20 -> 12.2
B21: Lucro Líquido | F21: =F19-F20 -> 32 | G21: =G19-G20 -> 40 | H21: =H19-H20 -> 48.8
B22: Dividendos pagos | C22: 0 | F22: =$C22*F21 -> 0 | G22: =$C22*G21 -> 0 | H22: 0
I23: Média
B24: EBITDA / Investimento inicial | F24: =F15/$E$31 -> 0.3333333333 | G24: =G15/$E$31 -> 0.3666666667 | H24: =H15/$E$31 -> 0.4033333333 | I24: =AVERAGE(F24:H24) -> 0.3677777778
B25: RONA (EBIT / AL) | F25: =F17/E32 -> 0.1333333333 | G25: =G17/F32 -> 0.1388888889 | H25: =H17/G32 -> 0.1955128205 | I25: =AVERAGE(F25:H25) -> 0.1559116809
B26: ROA (LL / AL) | F26: =F21/E32 -> 0.1066666667 | G26: =G21/F32 -> 0.1111111111 | H26: 0.1564102564 | I26: =AVERAGE(F26:H26) -> 0.1247293447
B27: ROE (LL / PL) | F27: =F21/E37 -> 0.1066666667 | G27: =G21/F37 -> 0.1204819277 | H27: =H21/G37 -> 0.1311827957 | I27: =AVERAGE(F27:H27) -> 0.1194437967
B29: Balanço Curto ou Resumido | E29: 0 | F29: 1 | G29: 2 | H29: 3
B30: NOF (20% Vendas) | C30: 0.2 | D30: x Vendas | F30: =$C$30*F11 -> 120 | G30: =$C$30*G11 -> 132 | H30: 0
B31: AF, Líquido | C31: 0 | D31: Capex | E31: 300 | F31: =E31-F16+$C31 -> 240 | G31: =F31-G16+$C31 -> 180 | H31: 0
B32: AL, Ativos Líquidos | E32: =E31+E30 -> 300 | F32: =F31+F30 -> 360 | G32: =G31+G30 -> 312 | H32: =H31+H30 -> 0
B34: Linha de crédito D-S | C34: 0 | D34: % NOF | E34: =$C34*E30 -> 0 | F34: =$C34*F30 -> 0 | G34: =$C34*G30 -> 0 | H34: 0
B35: Empréstimo D-L | C35: 3 | D35: anos | E35: 0 | F35: =E35-($E35/$C35) -> 0 | G35: =F35-($E35/$C35) -> 0 | H35: 0
B36: D, Dívida Total | E36: =E34+E35 -> 0 | F36: =F34+F35 -> 0 | G36: =G34+G35 -> 0 | H36: 0
B37: E, Patrimônio Líq. (Equity) | E37: =E31-E35 -> 300 | F37: =E37+F21-F22 -> 332 | G37: =F37+G21-G22 -> 372 | H37: 420.8
B38: Financiamento Total | E38: =E36+E37 -> 300 | F38: =F36+F37 -> 332 | G38: 372 | H38: 420.8
D40: Caixa no Balanço (+ ou -) | E40: =E38-E32 -> 0 | F40: =F38-F32 -> -28 | G40: =G38-G32 -> 60 | H40: =H38-H32 -> 420.8
D41: Aumento anual do Caixa | F41: =F40-E40 -> -28 | G41: =G40-F40 -> 88 | H41: =H40-G40 -> 360.8
D42: ECF = Aumento no Caixa + Diviendos Pagos | E42: =-E37 -> -300 | F42: =F41+F22 -> -28 | G42: =G41+G22 -> 88 | H42: 360.8
B44: FC para o acionista ou ECF | E44: 0 | F44: 1 | G44: 2 | H44: 3
B45: Lucro Líquido | F45: =F21 -> 32 | G45: =G21 -> 40 | H45: =H21 -> 48.8
B46: Variação no AL | E46: =-E32 -> -300 | F46: =E32-F32 -> -60 | G46: =F32-G32 -> 48 | H46: =G32-H32 -> 312
B47: Variação na Dívida | E47: =E36 -> 0 | F47: =F36-E36 -> 0 | G47: =G36-F36 -> 0 | H47: =H36-G36 -> 0 | I47: Soma FC
B48: Equity CFou FC acionista | E48: =SUM(E45:E47) -> -300 | F48: =SUM(F45:F47) -> -28 | G48: =SUM(G45:G47) -> 88 | H48: =SUM(H45:H47) -> 360.8 | I48: =SUM(E48:H48) -> 120.8
B49: TIR = | C49: =IRR(E48:H48) -> 0.122493435
B51: FCF após impostos | E51: 0 | F51: 1 | G51: 2 | H51: 3
B52: EBIT x (1-t) | F52: =F17*(1-$C20) -> 32 | G52: =G17*(1-$C20) -> 40 | H52: =H17*(1-$C20) -> 48.8
B53: Variação no AL | E53: =E46 -> -300 | F53: =F46 -> -60 | G53: 48 | H53: 312
B54: FCF após impostos | E54: =SUM(E52:E53) -> -300 | F54: =SUM(F52:F53) -> -28 | G54: =SUM(G52:G53) -> 88 | H54: =SUM(H52:H53) -> 360.8
B55: TIR = | C55: =IRR(E54:H54) -> 0.122493435
B59: Riscos. Análise de Sensibilidade.
D61: Maiores riscos
B62: Cenários | C62: Base | D62: Pior | E62: Melhor | F62: Intervalo
B63: Preço | C63: 10 | D63: 9 | E63: 11
B64: TIR acionista | C64: 0.1 | D64: -0.05131943497 | E64: 0.2448103983 | F64: =E64-D64 -> 0.2961298333
B65: Custo da Máquina FA | C65: 300 | D65: 330 | E65: 270
B66: TIR acionista | C66: =C64 -> 0.1 | D66: 0.07900881485 | E66: 0.124559999 | F66: =E66-D66 -> 0.0455511841
B67: Tamanho NOF% | C67: 0.2 | D67: 0.25 | E67: 0.15
B68: TIR acionista | C68: =C64 -> 0.1 | D68: 0.09438647416 | E68: 0.1063271923 | F68: =E68-D68 -> 0.01194071812
B69: Risco Total | C69: 0.1 | D69: -0.05875157854 | E69: 0.3002768656 | F69: =E69-D69 -> 0.3590284441
B72: TIR e Nível de Dívida
B73: Dívida | C73: TIR | D73: Aumento
B74: € 60M ou 20% do AF | C74: 0.128
B75: € 120M ou 40% do AF | C75: 0.149 | D75: =C75-C74 -> 0.021
B76: € 180M ou 60% do AF | C76: 0.183 | D76: =C76-C75 -> 0.034
B77: € 240M ou 80% do AF | C77: 0.251 | D77: 0.068

Sheet Anexo 5 (hidden)
E1: Caso 5. Comparação de 2 projetos. RESOLVIDO
B2: Premissas em negrito verde. Para fazer os cálculos, veja as notas dentro das células.
K3: Premissas NOF
B4: Premissas do DRE | C4: Premissas | F4: 1 | G4: 2 | H4: 3 | K4: Contas a Receber | L4: 90 | N4: NOF como % Vendas
B5: Peças produzidas | C5: 60000 | F5: =C5 -> 60000 | G5: =F5 -> 60000 | H5: =G5 -> 60000 | K5: Estoques | L5: 10 | N5: =(L4+L5*0.85-L6*0.85)/365 -> 0.2
B6: Preço unitário de venda em euros | C6: 10 | F6: =C6 -> 10 | G6: =F6*(1+$C$8) -> 10 | H6: =G6*(1+$C$8) -> 10 | K6: Contas a Pagar | L6: 30
B7: Custo unitário em euros | C7: 9 | F7: =C7 -> 9 | G7: =F7*(1+$C$8) -> 9 | H7: =G7*(1+$C$8) -> 9
B8: Inflação esperada | C8: 0
B10: DRE (€ ’000) | F10: 1 | G10: 2 | H10: 3
B11: Vendas | F11: =F5*F6/1000 -> 600 | G11: =G5*G6/1000 -> 600 | H11: =H5*H6/1000 -> 600
B12: Custo de Mercadorias Vendidas (CMV) | F12: =F7*F5/1000 -> 540 | G12: =G7*G5/1000 -> 540 | H12: =H7*H5/1000 -> 540
B13: Margem Bruta | F13: =F11-F12 -> 60 | G13: =G11-G12 -> 60 | H13: =H11-H12 -> 60
B14: Despesas Operacionais (Opex) | C14: 20 | F14: =C14 -> 20 | G14: =F14*(1+$C8) -> 20 | H14: =G14*(1+$C8) -> 20
B15: EBITDA | F15: =F13-F14 -> 40 | G15: =G13-G14 -> 40 | H15: =H13-H14 -> 40
B16: Depreciação | C16: 5 | D16: anos | F16: =$E31*(1/$C$16) -> 0 | G16: =$E31*(1/$C$16) -> 0 | H16: =$E31*(1/$C$16) -> 0
B17: EBIT | F17: =F15-F16 -> 40 | G17: =G15-G16 -> 40 | H17: =H15-H16 -> 40
B18: Despesa de juros | C18: 0.05 | F18: =E36*$C$18 -> 0 | G18: =F36*$C$18 -> 0 | H18: =G36*$C$18 -> 0
B19: Lucro antes de impostos | F19: =F17-F18 -> 40 | G19: =G17-G18 -> 40 | H19: =H17-H18 -> 40
B20: Impostos | C20: 0.2 | F20: =F19*$C$20 -> 8 | G20: =G19*$C$20 -> 8 | H20: =H19*$C$20 -> 8
B21: Lucro Líquido | F21: =F19-F20 -> 32 | G21: =G19-G20 -> 32 | H21: =H19-H20 -> 32
B22: Dividendos pagos | C22: 0 | F22: =$C22*F21 -> 0 | G22: =$C22*G21 -> 0 | H22: 0
I23: Média
B24: EBITDA / Investimento inicial | F24: na | G24: na | H24: na | I24: na
B25: RONA (EBIT / AL) | F25: na | G25: =G17/F32 -> 0.3333333333 | H25: =H17/G32 -> 0.3333333333 | I25: =AVERAGE(F25:H25) -> 0.3333333333
B26: ROA (LL / AL) | F26: na | G26: =G21/F32 -> 0.2666666667 | H26: 0.2666666667 | I26: =AVERAGE(F26:H26) -> 0.2666666667
B27: ROE (LL / PL) | F27: na | G27: =G21/F37 -> 1 | H27: =H21/G37 -> 0.5 | I27: =AVERAGE(F27:H27) -> 0.75
B29: Balanço Curto ou Resumido | E29: 0 | F29: 1 | G29: 2 | H29: 3
B30: NOF (20% Vendas) | C30: 0.2 | D30: x Vendas | F30: =$C$30*F11 -> 120 | G30: =$C$30*G11 -> 120 | H30: 0
B31: AF, Líquido | C31: 0 | D31: Capex | E31: 0 | F31: =E31-F16+$C31 -> 0 | G31: =F31-G16+$C31 -> 0 | H31: 0
B32: AL, Ativos Líquidos | E32: =E31+E30 -> 0 | F32: =F31+F30 -> 120 | G32: =G31+G30 -> 120 | H32: =H31+H30 -> 0
B34: Linha de crédito D-S | C34: 0 | D34: % NOF | E34: =$C34*E30 -> 0 | F34: =$C34*F30 -> 0 | G34: =$C34*G30 -> 0 | H34: 0
B35: Empréstimo D-L | C35: 3 | D35: anos | E35: 0 | F35: =E35-($E35/$C35) -> 0 | G35: =F35-($E35/$C35) -> 0 | H35: 0
B36: D, Dívida Total | E36: =E34+E35 -> 0 | F36: =F34+F35 -> 0 | G36: =G34+G35 -> 0 | H36: 0
B37: E, Patrimônio Líq. (Equity) | E37: =E31-E35 -> 0 | F37: =E37+F21-F22 -> 32 | G37: =F37+G21-G22 -> 64 | H37: 96
B38: Financiamento Total | E38: =E36+E37 -> 0 | F38: =F36+F37 -> 32 | G38: 64 | H38: 96
D40: Caixa no Balanço (+ ou -) | E40: =E38-E32 -> 0 | F40: =F38-F32 -> -88 | G40: =G38-G32 -> -56 | H40: =H38-H32 -> 96
D41: Aumento anual do Caixa | F41: =F40-E40 -> -88 | G41: =G40-F40 -> 32 | H41: =H40-G40 -> 152
D42: ECF = Aumento no Caixa + Diviendos Pagos | E42: =-E37 -> 0 | F42: =F41+F22 -> -88 | G42: =G41+G22 -> 32 | H42: 152
B44: FC para o acionista ou ECF Máquina Antiga | E44: 0 | F44: 1 | G44: 2 | H44: 3
B45: Lucro Líquido | F45: =F21 -> 32 | G45: =G21 -> 32 | H45: =H21 -> 32
B46: Variação no AL | E46: =-E32 -> 0 | F46: =E32-F32 -> -120 | G46: =F32-G32 -> 0 | H46: =G32-H32 -> 120
B47: Variação na Dívida | E47: =E36 -> 0 | F47: =F36-E36 -> 0 | G47: =G36-F36 -> 0 | H47: =H36-G36 -> 0 | I47: Soma FC
B48: Equity CFou FC acionista | E48: =SUM(E45:E47) -> 0 | F48: =SUM(F45:F47) -> -88 | G48: =SUM(G45:G47) -> 32 | H48: =SUM(H45:H47) -> 152 | I48: =SUM(E48:H48) -> 96
B49: TIR = | C49: =IRR(E48:H48) -> 0.5085926836
B51: FCF after tax | E51: 0 | F51: 1 | G51: 2 | H51: 3
B52: EBIT x (1-t) | F52: =F17*(1-$C20) -> 32 | G52: =G17*(1-$C20) -> 32 | H52: =H17*(1-$C20) -> 32
B53: Change in NA | E53: =E46 -> 0 | F53: =F46 -> -120 | G53: 0 | H53: 120
B54: FCF after tax | E54: =SUM(E52:E53) -> 0 | F54: =SUM(F52:F53) -> -88 | G54: =SUM(G52:G53) -> 32 | H54: =SUM(H52:H53) -> 152
B55: IRR = | C55: =IRR(E54:H54) -> 0.5085926836
B59: Risks. Sensitivity Analysis.
C61: Biggest Risk
B62: Scenarios | C62: Base | D62: Worst | E62: Best | F62: Range
B63: Price | C63: 10 | D63: 9 | E63: 11
B64: IRR shareholder | C64: 0.1 | D64: -0.05131943497 | E64: 0.2448103983 | F64: =E64-D64 -> 0.2961298333
B65: Cost of Machine FA | C65: 300 | D65: 330 | E65: 270
B66: IRR shareholder | C66: =C64 -> 0.1 | D66: 0.07900881485 | E66: 0.124559999 | F66: =E66-D66 -> 0.0455511841
B67: Size of NFO% | C67: 0.2 | D67: 0.25 | E67: 0.15
B68: IRR shareholder | C68: =C64 -> 0.1 | D68: 0.09438647416 | E68: 0.1063271923 | F68: =E68-D68 -> 0.01194071812
B69: Total Risk | C69: 0.1 | D69: -0.05875157854 | E69: 0.3002768656 | F69: =E69-D69 -> 0.3590284441
B72: IRR and Level of Debt
B73: Debt | C73: IRR | D73: Increase
B74: 60M€ or 20% of FA | C74: 0.128
B75: 120M€ or 40% of FA | C75: 0.149 | D75: =C75-C74 -> 0.021
B76: 180M€ or 60% of FA | C76: 0.183 | D76: =C76-C75 -> 0.034
B77: 240M€ or 80% of FA | C77: 0.251 | D77: 0.068
F79: FOR CASE 5
B81: Equity CF ou FC acionista | D81: 0 | E81: 1 | F81: 2 | G81: 3 | H81: TIR | I81: Soma FC
A82: 1 | B82: Nova máquina sem dívida (caso 1) | D82: -300 | E82: -28 | F82: 92 | G82: 332 | H82: 0.1000188925 | I82: 96
A83: 3 | B83: Nova máquina com dívida (caso 3) | D83: -120 | E83: 0.8 | F83: 23.36 | G83: 169.76 | H83: 0.1826718657 | I83: 73.92
A84: 5 | B84: Máquina antiga, sem dívida (caso 5) | D84: 0 | E84: -88 | F84: 32 | G84: 152 | H84: 0.5085926836 | I84: 96
A85: 5b | B85: Máquina antiga, com dívida (caso 5) | D85: 0 | E85: 8 | F85: 28.16 | G85: 52.16 | H85: na | I85: 88.32

Sheet Anexos 6&7 (hidden)
E1: Caso 6. Projeto de redução de custos. Comprar ou alugar? FEITO
B2: Premissas em negrito verde
G3: Comprar
B4: DRE | C4: Premissas | F4: 1 | G4: 2 | H4: 3 | J4: Alugar
B5: EBITDA | C5: 100 | F5: =$C5 -> 100 | G5: =$C5 -> 100 | H5: 100 | J5: =$C5 -> 100
B6: Depreciação ou pgto aluguel | C6: 5 | D6: anos | F6: =E15/C6 -> 60 | G6: =F6 -> 60 | H6: =G6 -> 60 | J6: 85
B7: EBIT | F7: =F5-F6 -> 40 | G7: =G5-G6 -> 40 | H7: 40 | J7: =J5-J6 -> 15 | M7: Aluguel
B8: Despesa com juros | C8: 0.05 | F8: =$C8*E20 -> 9 | G8: =$C8*F20 -> 10.8 | H8: 7.8 | J8: =$C8*F18 -> 4.8 | M8: -300
B9: Lucro antes de impostos | F9: =F7-F8 -> 31 | G9: =G7-G8 -> 29.2 | H9: 32.2 | J9: =J7-J8 -> 10.2 | M9: 85
B10: Imposto | C10: 0.2 | F10: =$C10*F9 -> 6.2 | G10: =$C10*G9 -> 5.84 | H10: 6.44 | J10: =J9*C10 -> 2.04 | M10: =M9 -> 85
B11: LL, Lucro líquido | F11: =F9-F10 -> 24.8 | G11: =G9-G10 -> 23.36 | H11: 25.76 | J11: =J9-J10 -> 8.16 | M11: =M10 -> 85
M12: =M11 -> 85
B13: Balanço patrimonial ao comprar | E13: 0 | F13: 1 | G13: 2 | H13: 3 | M13: =M12 -> 85
B14: NOF | F14: 120 | G14: =$F$14 -> 120 | H14: 0
B15: AF (máquina) | E15: 300 | F15: =E15-$F6 -> 240 | G15: =F15-$F6 -> 180 | H15: 0 | M15: =IRR(M8:M13) -> 0.1285846353
B16: AL, Ativos líquidos | E16: =E14+E15 -> 300 | F16: =F14+F15 -> 360 | G16: 300 | H16: =H15+H14 -> 0
B18: Linha de crédito (D-curto prazo) | C18: 0.8 | F18: =$C18*F14 -> 96 | G18: =$C18*G14 -> 96 | H18: =$C18*H14 -> 0
B19: Empréstimo (D-longo prazo) | C19: 3 | D19: anos | E19: 180 | F19: =E19-($E19/$C19) -> 120 | G19: =F19-($E19/$C19) -> 60 | H19: 0
B20: D, Dívida total | E20: =E18+E19 -> 180 | F20: =F18+F19 -> 216 | G20: 156 | H20: 0
B21: E, Patrimônio líquido | E21: =E16-E20 -> 120 | F21: =E21+$F$11 -> 144.8 | G21: =F21+$F$11 -> 169.6 | H21: =G21+$F$11 -> 194.4
B22: Patrimônio líquido + Dívida | E22: =E20+E21 -> 300 | F22: =F20+F21 -> 360.8 | G22: 325.6 | H22: 194.4
D23: Caixa Excedente | E23: =E22-E16 -> 0 | F23: =F22-F16 -> 0.8 | G23: =G22-G16 -> 25.6 | H23: =H22-H16 -> 194.4
D24: Caixa Gerado, FC | E24: =-E21 -> -120 | F24: =F23-E23 -> 0.8 | G24: =G23-F23 -> 24.8 | H24: =H23-G23 -> 168.8
B26: FC acionista ao comprar | E26: 0 | F26: 1 | G26: 2 | H26: 3
B27: Variação nos ativos | E27: =-E16 -> -300 | F27: =E16-F16 -> -60 | G27: =F16-G16 -> 60 | H27: =G16-H16 -> 300
B28: Variação na dívida | E28: =E20 -> 180 | F28: =F20-E20 -> 36 | G28: =G20-F20 -> -60 | H28: -156
B29: Lucro líquido | F29: =$F$11 -> 24.8 | G29: =$F$11 -> 24.8 | H29: =$F$11 -> 24.8 | J29: Soma FC
B30: FC acionista (Compra) | E30: =E27+E28+E29 -> -120 | F30: 0.8 | G30: 24.8 | H30: 168.8 | J30: =SUM(E30:H30) -> 74.4
B32: Retorno exigido (K) = | C32: 0.13 | E32: VPL = | F32: =NPV(C32,F30:H30)+E30 -> 17.11686974 | G32: TIR = | H32: =IRR(E30:H30) -> 0.1842279669
B34: FC acionista ao alugar | E34: 0 | F34: 1 | G34: 2 | H34: 3
B35: Variação em NOF | F35: =E14-F14 -> -120 | G35: =F14-G14 -> 0 | H35: 120
B36: Variação na linha de crédito | F36: =F18-E18 -> 96 | G36: =G18-F18 -> 0 | H36: -96
B37: Lucro líquido ao alugar | E37: 0 | F37: =$J$11 -> 8.16 | G37: =$J$11 -> 8.16 | H37: =$J$11 -> 8.16 | J37: Soma FC
B38: FC acionista (Aluguel) | E38: =E35+E36+E37 -> 0 | F38: -15.84 | G38: 8.16 | H38: 32.16 | J38: =SUM(E38:H38) -> 24.48
E40: VPL = | F40: =NPV(C32,F38:H38)+E38 -> 14.66127104 | G40: TIR = | H40: =IRR(E38:H38) -> 0.7055565244
E44: Caso 7. Comparação entre projetos. RESOLVIDO.
A46: Caso | B46: CF acionista ou ECF | D46: 0 | E46: 1 | F46: 2 | G46: 3 | H46: TIR | J46: Soma FC
A47: 1 | B47: Nova máquina, sem dívida | D47: -300 | E47: -28 | F47: 92 | G47: 332 | H47: 0.1000188925 | J47: =SUM(D47:G47) -> 96
A48: 2 | B48: Riscos - Pior Cenário | D48: -330 | E48: -89.8 | F48: 45.2 | G48: 312.2 | H48: -0.05875157854 | J48: =SUM(D48:G48) -> -62.4
A49: 2 | B49: Riscos - Melhor Cenário | D49: -270 | E49: 39.8 | F49: 138.8 | G49: 345.8 | H49: 0.3002768656 | J49: =SUM(D49:G49) -> 254.4
A50: 3 | B50: Nova máquina com dívida | D50: -120 | E50: 0.8 | F50: 23.36 | G50: 169.76 | H50: 0.1826718657 | J50: =SUM(D50:G50) -> 73.92
A51: 3b | B51: Nova máquina com dívida, Pior Cenário | D51: -150 | E51: -49 | F51: -23.92 | G51: 137.48 | H51: -0.1745913865 | J51: -85.44
A52: 3c | B52: Nova máquina com dívida, Melhor Cenário | D52: -90 | E52: 51.8 | F52: 70.832 | G52: 201.032 | H52: 0.7522264968 | J52: 233.664
A53: 4 | B53: Nova máquina com inflação, sem dívida | D53: -300 | E53: -28 | F53: 88 | G53: 360.8 | H53: 0.122493435 | J53: 120.8
A54: 4b | B54: Nova máquina com inflação e dívida | D54: -120 | E54: 0.8 | F54: 28.96 | G54: 188.576 | H54: 0.2340795223 | J54: 98.336
A55: 5 | B55: Máquina antiga, sem dívida | D55: 0 | E55: -88 | F55: 32 | G55: 152 | H55: 0.5085926836 | J55: 96
A56: 5b | B56: Máquina antiga, com dívida | D56: 0 | E56: 8 | F56: 28.16 | G56: 52.16 | H56: na | J56: 88.32
A57: 6 | B57: Alugar vs Comprar | D57: 0 | E57: -15.84 | F57: 8.16 | G57: 32.16 | H57: 0.71 | J57: 24.48
